Workbook

Sheet Deckblatt
B1: Schnellkalkulation Komfortlüftungsanlage Einfamilienhaus/Reihenhaus | T1: Schnellkalkulation Komfortlüftungsanlage Einfamilienhaus/Reihenhaus
B5: Projekt Nr.: | C5: 1 | K5: Datum: | L5: =TODAY() -> 2025-01-27 | T5: Änderbare Zu bzw. Abluftmengen in m3/h
B6: Kunde: | C6: Mustermann | K6: Verkäufer: | L6: Mustermann
B8: Zulufträume | C8: Anz. | G8: Anz. | H8: SN-Dim. | I8: VT-Abg. | K8: Ablufträume | L8: Anz. | P8: Anz. | Q8: SN-Dim. | R8: VT-Abg. | T8: Norm Zuluftmengen | V8: Min.-WERT | W8: Max.-WERT | Y8: Norm Abluftmengen | AA8: Min.-WERT | AB8: Max.-WERT
B9: cWohnzimmer | D9: = | E9: =C9*(((C10*2)+C11)*U9) -> 0 | F9: m3/h | G9: =ROUNDUP(E9/50,0) -> 0 | H9: DN125 | I9: =ROUNDUP(E9/25,0) -> 0 | K9: cKüche | M9: = | N9: =L9*Z9 -> 0 | O9: m3/h | P9: =ROUNDUP(N9/50,0) -> 0 | Q9: DN125 | R9: =ROUNDUP(N9/25,0) -> 0 | T9: cWohnzimmer pro Person | U9: 15 | V9: 15m3/h | W9: offen | Y9: cKüche | Z9: 30 | AA9: 30m3/h | AB9: offen
B10: aSchlafzimmer | D10: = | E10: =C10*U10*2 -> 0 | F10: m3/h | G10: =C10 -> 0 | H10: DN125 | I10: =C10*2 -> 0 | K10: Bad | M10: = | N10: =L10*Z10 -> 0 | O10: m3/h | P10: =L10 -> 0 | Q10: DN125 | R10: =L10*2 -> 0 | T10: aSchlafzimmer pro Person | U10: 25 | V10: 20m3/h | W10: 25m3/h | Y10: Bad | Z10: 30 | AA10: 30m3/h | AB10: 50m3/h
B11: aKinderzimmer | D11: = | E11: =C11*U11 -> 0 | F11: m3/h | G11: =C11 -> 0 | H11: DN100 | I11: =C11 -> 0 | K11: Bad Nebennutz. | M11: = | N11: 0 | O11: m3/h | P11: =L11 -> 0 | Q11: DN100 | R11: =L11 -> 0 | T11: aKind pro Person | U11: 25 | V11: 20m3/h | W11: 25m3/h | Y11: Bad Nebennutzung | Z11: 25 | AA11: 25m3/h | AB11: 25m3/h
B12: aGästezimmer | D12: = | E12: 0 | F12: m3/h | G12: =C12 -> 0 | H12: DN100 | I12: =C12 -> 0 | K12: WC | M12: = | N12: 0 | O12: m3/h | P12: 0 | Q12: DN100 | R12: =L12 -> 0 | T12: aGast pro Person | U12: 25 | V12: 20m3/h | W12: 25m3/h | Y12: WC | Z12: 15 | AA12: 15m3/h | AB12: 25m3/h
B13: Büro | D13: = | E13: 0 | F13: m3/h | G13: =C13 -> 0 | H13: DN125 | I13: =C13*2 -> 0 | K13: Speis | M13: = | N13: 0 | O13: m3/h | P13: 0 | Q13: DN100 | R13: 0 | T13: Büro | U13: 30 | V13: 30m3/h | W13: 50m3/h | Y13: Speis | Z13: 10 | AA13: 10m3/h | AB13: 25m3/h
B14: Schrankraum | D14: = | E14: 0 | F14: m3/h | G14: 0 | H14: DN100 | I14: =C14 -> 0 | K14: HWR | M14: = | N14: 0 | O14: m3/h | P14: 0 | Q14: DN100 | R14: 0 | T14: Schrankraum | U14: 10 | V14: 10m3/h | W14: 25m3/h | Y14: Hauswirtschaftsraum | Z14: 10 | AA14: 10m3/h | AB14: 25m3/h
B15: =T15 -> Sonstige 10-25 | D15: = | E15: 0 | F15: m3/h | G15: 0 | H15: DN100 | I15: =C15 -> 0 | K15: Abstellraum | M15: = | N15: 0 | O15: m3/h | P15: 0 | Q15: DN100 | R15: 0 | T15: Sonstige 10-25 | U15: 10 | V15: 10m3/h | W15: 25m3/h | Y15: Abstellraum | Z15: 10 | AA15: 10m3/h | AB15: 25m3/h
B16: =T16 -> Sonstige 30-50 | D16: = | E16: 0 | F16: m3/h | G16: 0 | H16: DN125 | I16: =C16*2 -> 0 | K16: Schrankraum | M16: = | N16: 0 | O16: m3/h | P16: 0 | Q16: DN100 | R16: 0 | T16: Sonstige 30-50 | U16: 30 | V16: 30m3/h | W16: 50m3/h | Y16: Schrankraum | Z16: 10 | AA16: 10m3/h | AB16: 25m3/h
K17: Technikraum | M17: = | N17: 0 | O17: m3/h | P17: 0 | Q17: DN100 | R17: 0 | Y17: Technikraum | Z17: 10 | AA17: 10m3/h | AB17: 25m3/h
K18: =Y18 -> Sonstige 10-25 | M18: = | N18: 0 | O18: m3/h | P18: 0 | Q18: DN100 | R18: 0 | Y18: Sonstige 10-25 | Z18: 10 | AA18: 10m3/h | AB18: 25m3/h
K19: =Y19 -> Sonstige 30-50 | M19: = | N19: 0 | O19: m3/h | P19: 0 | Q19: DN125 | R19: =L19*2 -> 0 | Y19: Sonstige 30-50 | Z19: 30 | AA19: 30m3/h | AB19: 50m3/h
B21: Zuluftmenge | E21: =SUM(E9:E20) -> 0 | F21: m3/h | H21: VT-Abg. | I21: =SUM(I9:I20) -> 0 | K21: Abluftmenge | N21: =SUM(N9:N20) -> 0 | O21: m3/h | Q21: VT-Abg. | R21: =SUM(R9:R20) -> 0 | T21: 1.) Bei Änderung der Luftmengen sind die Max.-WERTE nicht zu überschreiten, da ansonsten die Materialauf-
T22: stellung nicht stimmt !!!
B23: Berechnete Nennluftmenge | Q23: =MAX(E21,N21) -> 0 | R23: m3/h | T23: 2.) ACHTUNG: DATEI BITTE IM *.XLSM-FORMAT SPEICHERN
B25: =IF(AND(Q23<161,Q23>40),T26,IF(AND(Q23<271,Q23>160),T27,IF(AND(Q23<460,Q23>270),T28,IF(Q23<41,"",T29)))) ->  | T25: =db_Gerät -> 
T26: -> Komfortlüftungsgerät KL170XV/170S/170 (Einsatzbereich bei 100Pa: 40-162m3/h)
B27: Komfortlüftungsgeräteausführung | I27: Wandmontage ohne Feuchterückgewinnung ZUL rechts | R27: 0 | T27: -> Komfortlüftungsgerät KL350 (Einsatzbereich bei 100Pa: 100-320m3/h)
I28: Wandmontage ohne Feuchterückgewinnung ZUL links | R28: 1 | T28: -> Komfortlüftungsgerät KL500 (Einsatzbereich bei 100Pa: 100-460m3/h)
I29: Wandmontage mit Feuchterückgewinnung ZUL rechts | R29: 2
I30: Wandmontage mit Feuchterückgewinnung ZUL links | R30: 3
I31: Deckenmontage mit Feuchterückgewinnung ZUL rechts | R31: 4
I32: Deckenmontage mit Feuchterückgewinnung ZUL links | R32: 5
I33: gewählte Ausführung | R33: 0
B35: Zu- und Abluftverteiltechnik | I35: Schalldämmverteiler | R35: 0 | T35: Verteiltechnik Zu- und Abluft
I36: Sternverteiler mit Schalldämpfer | R36: 1
I37: gewählte Ausführung | R37: 0 | T37: Zuluftanschlüsse: | U37: =ROUNDUP(E9/25,0)+C10*2+C11+C12+C13*2+C14+C15+C16*2 -> 0 | W37: =ROUNDUP(U37/6,0) -> 0 | X37: .. Anz Stern-VT - ZUL
T38: Abluftanschlüsse: | U38: =ROUNDUP(N9/25,0)+L10*2+L11+L12+L13+L14+L15+L16+L17+L18+L19*2 -> 0 | W38: =ROUNDUP(U38/6,0) -> 0 | X38: .. Anz Stern-VT - ABL
B39: Die farblich hinterlegten Felder dienen zur Auswahl der baustellenbezogenen Anlagensituation | T39: Größerer Wert: | U39: =MAX(db_AnzAbgZUL,db_AnzAbgABL) -> 0
T40: Saugnische 100: | U40: =C11+C12+C14+C15+L11+L12+L13+L14+L15+L16+L17+L18 -> 0
B41: aSofern keine luftqualitätsabhängige Betriebsweise realisiert wird, darf der Wert mit 20m3/h pro Person | T41: Saugnische 125: | U41: =ROUNDUP(E9/50,0)+ROUNDUP(N9/50,0)+C10+C13+C16+L10+L19 -> 0
B42: angenommen werden, wobei zu beachten ist, dass sich die CO2-Konzentration gegebenfalls über dem | T42: Zuluftauslass 100: | U42: =C11+C12+C14+C15 -> 0
B43: Richtwert von 1.000 ppm einstellt. | T43: Zuluftauslass 125: | U43: =ROUNDUP(E9/50,0)+C10+C13+C16 -> 0
T44: Abluftventil 100: | U44: =L11+L12+L13+L14+L15+L16+L17+L18 -> 0
B45: bDer verbleibende Abluft-Volumenstrom ist auf die anderen Ablufträume aufzuteilen, wobei ein Mindest- | T45: Abluftventil 125: | U45: =ROUNDUP(N9/50,0)+L10+L19 -> 0
B46: Abluftvolumenstrom von 10m3/h je Abluftraum nicht unterschritten werden darf. | T46: Schlauch: | U46: =(db_AnzAbgZUL+db_AnzAbgABL)*12 -> 0
T47: Anzahl SD-Verteiler | U47: =IF(AND(db_Verteiler=0,db_AnzMaxAbg>1,db_AnzMaxAbg<15), IF(db_Luftmenge_max<301,1,2), IF(AND(db_Verteiler=0,db_AnzMaxAbg>14,db_AnzMaxAbg<29),2,0)) -> 0
B48: cBei Wohn-Esszimmern ist der angegebene Volumenstrom als Zuluft und Überstrom-Volumenstrom zu | T48: Anzahl Bögen ZUL | U48: =IF(dB_AnzSDV=1,IF(db_AnzAbgZUL>6,db_AnzAbgZUL-6,0),IF(dB_AnzSDV=2,IF(db_AnzAbgZUL>12,db_AnzAbgZUL-12,0),0)) -> 0
B49: verstehen. Der Abluft-Volumenstrom im Küchenbereich ist so zu wählen, dass eine Geruchsverschleppung | T49: Anzahl Bögen ABL | U49: =IF(dB_AnzSDV=1,IF(db_AnzAbgABL>6,db_AnzAbgABL-6,0),IF(dB_AnzSDV=2,IF(db_AnzAbgABL>12,db_AnzAbgABL-12,0),0)) -> 0
B50: größtenteils vermieden wird. | T50: Anzahl Bögen Gesamt | U50: =SUM(U48:U49) -> 0

Sheet KL170XV (hidden)
A1: Projekt Nr.: | B1: =Deckblatt!C5 -> 1 | D1: MATERIALAUFSTELLUNG FRISCHLUFTGERÄT KL170XV INKL. BEDIENTEIL MINI UND VORHEIZREGISTER | F1: Datum: | I1: =TODAY() -> 2025-01-27
A2: Kunde: | B2: =Deckblatt!C6 -> Mustermann | F2: Verkäufer: | I2: =Deckblatt!L6 -> Mustermann
A4: Option/ | B4: Stück | C4: Artikelnummer | D4: Bezeichung 1 | E4: Bezeichnung 2 | F4: EH | G4: L | H4: Euro/EH | I4: Euro/Summe
A5: Alternative | I5: =I98 -> 2954.77
D7: Frischluftgerät KL170XV
B8: 1 | C8: =IF(Deckblatt!R33=0,K8,IF(Deckblatt!R33=1,K8,IF(Deckblatt!R33=2,K9, IF(Deckblatt!R33=3,K9, IF(Deckblatt!R33=4,K9,IF(Deckblatt!R33=5,K9,)))))) -> KLL170XV | D8: =VLOOKUP($C8,db_Artikel,3) -> KL Lufttechnik Lüftungsgerät KL170XV ZUL | E8: =VLOOKUP($C8,db_Artikel,4) -> li .od.re, m. VHR (Wand) | F8: =VLOOKUP($C8,db_Artikel,5) -> ST | G8: =VLOOKUP($C8,db_Artikel,6) -> J | H8: =VLOOKUP($C8,db_Artikel,7) -> 1778.82 | I8: =IFERROR(B8*H8,"") -> 1778.82 | K8: KLL170XV
K9: KLL170XVE
D10: Regelungskomponenten KL170XV
A11: Option | C11: KLLBTS | D11: =VLOOKUP($C11,db_Artikel,3) -> KL Lufttechnik Bedienteil Smart | E11: =VLOOKUP($C11,db_Artikel,4) -> kabelgebunden | F11: =VLOOKUP($C11,db_Artikel,5) -> ST | G11: =VLOOKUP($C11,db_Artikel,6) -> J | H11: =VLOOKUP($C11,db_Artikel,7) -> 394 | I11: =IFERROR(B11*H11,"") -> 0
A12: Option | C12: KLLBTAPRA | D12: KL Lufttechnik Aufputzrahmen für Bedien- | E12: =VLOOKUP($C12,db_Artikel,4) -> teil MINI und SMART | F12: ST | G12: N | H12: 30.52 | I12: =IFERROR(B12*H12,"") -> 0
A13: Option | C13: KLLSEP | D13: KL Lufttechnik Sensorplatine mit VOC- | E13: =VLOOKUP($C13,db_Artikel,4) -> Luftqualitäts- und Feuchtesensor | F13: ST | G13: J | H13: 233.24 | I13: =IFERROR(B13*H13,"") -> 0
A14: Option | C14: KLLAUF | D14: KL Lufttechnik Außentemperaturfühler | F14: ST | G14: N | H14: 21.18 | I14: =IFERROR(B14*H14,"") -> 0
D16: Zubehör KL170XV
A17: Option | C17: KLL170NHR | D17: =VLOOKUP($C17,db_Artikel,3) -> KL Lufttechnik PTC-Nachheizregister | E17: =VLOOKUP($C17,db_Artikel,4) -> für KL170XV/KL170S/KL170 | F17: =VLOOKUP($C17,db_Artikel,5) -> ST | G17: =VLOOKUP($C17,db_Artikel,6) -> N | H17: =VLOOKUP($C17,db_Artikel,7) -> 206.04 | I17: =IFERROR(B17*H17,"") -> 0
A18: Option | C18: KLL170ASPLM | D18: KL Lufttechnik Anschlussplatte Massivwand | E18: KL170XV/KL170S/KL170, auch f. WC Modul | F18: ST | G18: N | H18: 182.07 | I18: 0
A19: Option | C19: KLL170ASPLSW | D19: KL Lufttechnik Anschlussplatte Ständerwand | E19: KL170XV/KL170S/KL170, auch f. WC Modul | F19: ST | G19: N | H19: 150.41 | I19: 0
B20: =IF(Deckblatt!R33=0,1,IF(Deckblatt!R33=1,1,IF(Deckblatt!R33=2,1,IF(Deckblatt!R33=3,1,IF(Deckblatt!R33=4,"",IF(Deckblatt!R33=5,"")))))) -> 1 | C20: KLLZSIFON | D20: KL Lufttechnik Sifon mit Geruchssperre | E20: für KL170XV/KL170S/KL170 und KL350/500 | F20: ST | G20: J | H20: 58.85 | I20: 58.85
B21: 1 | C21: =IF(Deckblatt!R33=0,K22,IF(Deckblatt!R33=1,K22,IF(Deckblatt!R33=2,K22,IF(Deckblatt!R33=3,K22,IF(Deckblatt!R33=4,K21,IF(Deckblatt!R33=5,K21)))))) -> KLLZRKL80120W | D21: KL Lufttechnik Revisionsklappe 80x120cm | E21: für KL170-XV und KL-Box, Wandeinbau | F21: ST | G21: N | H21: 237.6 | I21: 237.6 | K21: KLLZRKL80120D
A22: Option | C22: KLL170XVFSET | D22: KL Lufttechnik Filterset für KL170XV | E22: 1xZUL Filter F7, 1xABL Filter G4 | F22: SE | G22: J | H22: 42.04 | I22: 0 | K22: KLLZRKL80120W
A23: Option | C23: KLL170XVFSETF9 | D23: KL Lufttechnik Filterset für KL170XV | E23: 1xZUL Filter F9, 1xABL Filter G4 | F23: SE | G23: N | H23: 82 | I23: 0
D25: Verteiltechnik Zu- und Abluft Anbindung
B26: 2 | C26: KLLZSDS1251MN | D26: =VLOOKUP($C26,db_Artikel,3) -> KL Lufttechnik Flexibler Schalldämpfer | E26: =VLOOKUP($C26,db_Artikel,4) -> DN125, 1m, 32dB bei 250Hz, 25mm | F26: =VLOOKUP($C26,db_Artikel,5) -> ST | G26: =VLOOKUP($C26,db_Artikel,6) -> J | H26: =VLOOKUP($C26,db_Artikel,7) -> 70.58 | I26: =IFERROR(B26*H26,"") -> 141.16
D28: Verteiltechnik Schalldämmverteiler
B29: =dB_AnzSDV -> 0 | C29: KLLSDVEPP | D29: =VLOOKUP($C29,db_Artikel,3) -> KL Lufttechnik Schalldämmverteiler | E29: =VLOOKUP($C29,db_Artikel,4) -> 3x125/160mm Eing./28x75mm Ausg. | F29: =VLOOKUP($C29,db_Artikel,5) -> ST | H29: =VLOOKUP($C29,db_Artikel,7) -> 569.86 | I29: =IFERROR(B29*H29,"") -> 0
B30: =IF(B36=0,IF(db_AnzMaxAbg>14, 2, IF(db_AnzMaxAbg>8,1,"")),"") ->  | C30: KLLSDVEPPMOB | D30: =VLOOKUP($C30,db_Artikel,3) -> KL Lufttechnik Montagebügel Decke | E30: =VLOOKUP($C30,db_Artikel,4) -> für Schalldämmverteiler SDVEPP | F30: =VLOOKUP($C30,db_Artikel,5) -> ST | H30: =VLOOKUP($C30,db_Artikel,7) -> 69 | I30: =IFERROR(B30*H30,"") -> 
B31: =IF(B36=0,dB_AnzBog,"") -> 0 | C31: PKB75/87 | D31: =VLOOKUP($C31,db_Artikel,3) -> Poloplast Polokal NG Bogen PKB2134 | E31: =VLOOKUP($C31,db_Artikel,4) -> 87,5 Grad DN75 | F31: =VLOOKUP($C31,db_Artikel,5) -> ST | H31: =VLOOKUP($C31,db_Artikel,7) -> 11.18 | I31: =IFERROR(B31*H31,"") -> 0
D32: =db_AnzAbgZUL -> 0 | E32: aktive Zuluftanschlüsse
D33: =db_AnzAbgABL -> 0 | E33: aktive Abluftanschlüsse
D35: Anschlussplatte (max.16 Abgänge)
A36: Option | C36: KLLZSDVASPL/EPP | D36: =VLOOKUP($C36,db_Artikel,3) -> KL Lufttechnik Anschlussplatte für | E36: =VLOOKUP($C36,db_Artikel,4) -> Schalldämmverteiler EPP | F36: =VLOOKUP($C36,db_Artikel,5) -> ST | H36: =VLOOKUP($C36,db_Artikel,7) -> 109 | I36: =IFERROR(B36*H36,"") -> 0
A37: Option | C37: KLLZSDVASPL/EW | D37: =VLOOKUP($C37,db_Artikel,3) -> KL Lufttechnik Anschlussplattenerweiterung | E37: =VLOOKUP($C37,db_Artikel,4) -> zu EPP-Verteiler (2 Stück) | F37: =VLOOKUP($C37,db_Artikel,5) -> ST | H37: =VLOOKUP($C37,db_Artikel,7) -> 88 | I37: =IFERROR(B37*H37,"") -> 0
A38: Option | B38: =IF(B36>0,B36,"") ->  | C38: KLLZKUNI75EPP | D38: =VLOOKUP($C38,db_Artikel,3) -> KL Lufttechnik Verbindungsset SDV | E38: =VLOOKUP($C38,db_Artikel,4) -> und Anschlussplatte | F38: =VLOOKUP($C38,db_Artikel,5) -> ST | H38: =VLOOKUP($C38,db_Artikel,7) -> 51 | I38: =IFERROR(B38*H38,"") -> 
A39: Option | C39: KLLZHASAP6 | D39: =VLOOKUP($C39,db_Artikel,3) -> KL Lufttechnik Schlauchhalterung | E39: =VLOOKUP($C39,db_Artikel,4) -> zu Anschlussplatte SDV, beidseitig (1PK=2STK) | F39: =VLOOKUP($C39,db_Artikel,5) -> PK | H39: =VLOOKUP($C39,db_Artikel,7) -> 56.67 | I39: =IFERROR(B39*H39,"") -> 0
A40: Option | C40: KLLZHASAP12 | D40: =VLOOKUP($C40,db_Artikel,3) -> KL Lufttechnik Schlauchhalterung | E40: =VLOOKUP($C40,db_Artikel,4) -> zu Anschlussplatte SDV, einseitig | F40: =VLOOKUP($C40,db_Artikel,5) -> ST | H40: =VLOOKUP($C40,db_Artikel,7) -> 56.67 | I40: =IFERROR(B40*H40,"") -> 0
D42: Verteiltechnik Sternverteiler
B43: =IF(db_Verteiler=1,dB_AnzSTV_ZUL+dB_AnzSTV_ABL,"") ->  | C43: =IF(db_Verteiler=1,K43,"") ->  | D43: =IF($C43<>"",VLOOKUP($C43,db_Artikel,3),"") ->  | E43: =IF($C43<>"",VLOOKUP($C43,db_Artikel,4),"") ->  | F43: =IF($C43<>"",VLOOKUP($C43,db_Artikel,5),"") ->  | G43: =IF($C43<>"",VLOOKUP($C43,db_Artikel,6),"") ->  | H43: =IF($C43<>"",VLOOKUP($C43,db_Artikel,7),"") ->  | I43: =IFERROR(B43*H43,"") ->  | K43: KLLV125756
B44: =IF(db_Verteiler=1,dB_AnzSTV_ZUL+dB_AnzSTV_ABL,"") ->  | C44: =IF(db_Verteiler=1,K44,"") ->  | D44: =IF($C44<>"",VLOOKUP($C44,db_Artikel,3),"") ->  | E44: =IF($C44<>"",VLOOKUP($C44,db_Artikel,4),"") ->  | F44: =IF($C44<>"",VLOOKUP($C44,db_Artikel,5),"") ->  | G44: =IF($C44<>"",VLOOKUP($C44,db_Artikel,6),"") ->  | H44: =IF($C44<>"",VLOOKUP($C44,db_Artikel,7),"") ->  | I44: =IFERROR(B44*H44,"") ->  | K44: KLLZSNFL125
A45: Option | C45: KLLFSD752 | D45: =VLOOKUP($C45,db_Artikel,3) -> KL Lufttechnik Flachschalldämpfer 2xDN75 | E45: =VLOOKUP($C45,db_Artikel,4) -> Länge 500mm, 10dB bei 250Hz | F45: =VLOOKUP($C45,db_Artikel,5) -> ST | G45: =VLOOKUP($C45,db_Artikel,6) -> N | H45: =VLOOKUP($C45,db_Artikel,7) -> 162.44 | I45: =IFERROR(B45*H45,"") -> 0
D47: Verteiltechnik Zu- und Abluft Allgemein
B48: =ROUNDUP(dB_SchlauchLen/5,-1)*5 -> 0 | C48: KLLZSCHL75 | D48: =VLOOKUP($C48,db_Artikel,3) -> KL Lufttechnik Kunststoffschlauch DN75, | E48: =VLOOKUP($C48,db_Artikel,4) -> PE AD:75mm, ID:63mm | F48: =VLOOKUP($C48,db_Artikel,5) -> MT | G48: =VLOOKUP($C48,db_Artikel,6) -> J | H48: =VLOOKUP($C48,db_Artikel,7) -> 4.18 | I48: =IFERROR(B48*H48,"") -> 0
B49: =ROUNDDOWN(B48/51,0) -> 0 | C49: KLLZVEM75 | D49: KL Lufttechnik Verbindungsmuffe | E49: für Kunststoffschlauch DN75 | F49: ST | G49: J | H49: 5.19 | I49: 0
B50: =Deckblatt!U40 -> 0 | C50: KLLZSN10075 | D50: KL Lufttechnik Saugnische DN100 | E50: 1x DN75 max. 30m3/h, PE | F50: ST | G50: J | H50: 13.91 | I50: 0
B51: =Deckblatt!U40 -> 0 | C51: KLLZSNFL100 | D51: KL Lufttechnik Montageflansch DN100 | E51: für Saugnische DN100, PE | F51: ST | G51: J | H51: 6.44 | I51: 0
A52: Option | C52: KLLZSNVL100 | D52: KL Lufttechnik Verlängerung | E52: für Saugnische DN100 | F52: ST | G52: J | H52: 5.81 | I52: 0
B53: =Deckblatt!U41 -> 0 | C53: KLLZSN125752 | D53: KL Lufttechnik Saugnische DN125 | E53: 2x DN75 max. 60m3/h, PE | F53: ST | G53: J | H53: 25.64 | I53: 0
B54: =Deckblatt!U41 -> 0 | C54: KLLZSNFL125 | D54: KL Lufttechnik Montageflansch DN125 | E54: für Saugnische DN125, PE | F54: ST | G54: J | H54: 8.51 | I54: 0
A55: Option | C55: KLLZSNVL125 | D55: KL Lufttechnik Verlängerung f. Saugn.125 | E55: und Verteiler KLLV125756 | F55: ST | G55: J | H55: 7.27 | I55: 0
B56: =SUM(B64:B67)+SUM(B73:B74) -> 0 | C56: KLLZSDLR63 | D56: KL Lufttechnik Schalldämm-Luftregulier- | E56: einlage f.Saugn. DN100/125 u. Verteiler | F56: ST | G56: J | H56: 8.72 | I56: 0
D58: Sichtteile
B59: =Deckblatt!U42-B61-B64-B66 -> 0 | C59: KLLZZULV100 | D59: =VLOOKUP($C59,db_Artikel,3) -> KL Lufttechnik Zuluftventil DN100 rund | E59: =VLOOKUP($C59,db_Artikel,4) -> aus Stahlb. m. Einbaurahmen weiß lack. | F59: =VLOOKUP($C59,db_Artikel,5) -> ST | G59: =VLOOKUP($C59,db_Artikel,6) -> J | H59: =VLOOKUP($C59,db_Artikel,7) -> 5.61 | I59: =IFERROR(B59*H59,"") -> 0
B60: =Deckblatt!U43-B62-B63-B65-B67 -> 0 | C60: KLLZZULV125 | D60: KL Lufttechnik Zuluftventil DN125 rund | E60: aus Stahlb. m. Einbaurahmen weiß lack. | F60: ST | G60: J | H60: 6.95 | I60: 0
A61: Alternative | C61: KLLZULVW100 | D61: KL Lufttechnik Zuluftventil DN100 Wandm. | E61: aus Stahlb. m. Einbaurahmen weiß lack. | F61: ST | G61: J | H61: 39.24 | I61: 0
A62: Alternative | C62: KLLZULVW125 | D62: KL Lufttechnik Zuluftventil DN125 Wandm. | E62: aus Stahlb. m. Einbaurahmen weiß lack. | F62: ST | G62: J | H62: 46.09 | I62: 0
A63: Alternative | C63: KLLBOA801 | D63: KL Lufttechnik Vision Designauslass Floor | E63: DN125 ZUL-A f. Boden, Saugn.u.Reguliere. | F63: ST | G63: J | H63: 286.49 | I63: 0
A64: Alternative | C64: KLLVD100C | D64: KL Lufttechnik Vision Designgitter Cube | E64: DN100 ABL-G f. Decke, ZUL/ABL-G f. Wand | F64: ST | G64: J | H64: 66.12 | I64: 0
A65: Alternative | C65: KLLVD125C | D65: KL Lufttechnik Vision Designgitter Cube | E65: DN125 ABL-G f. Decke, ZUL/ABL-G f. Wand | F65: ST | G65: J | H65: 66.12 | I65: 0
A66: Altern. DN100 | C66: KLLVD100125P | D66: KL Lufttechnik Vision Designgitter Plane | E66: DN100/125 ZUL-G für Decke | F66: ST | G66: J | H66: 66.12 | I66: 0
A67: Altern. DN125 | C67: KLLVD100125P | D67: KL Lufttechnik Vision Designgitter Plane | E67: DN100/125 ZUL-G für Decke | F67: ST | G67: J | H67: 66.12 | I67: 0
B68: =Deckblatt!U44-B71-B73 -> 0 | C68: KLLZABLV100 | D68: KL Lufttechnik Abluftventil DN100 rund | E68: aus Stahlb. m. Einbaurahmen weiß lack. | F68: ST | G68: J | H68: 5.61 | I68: 0
B69: =Deckblatt!U45-B72-B74 -> 0 | C69: KLLZABLV125 | D69: KL Lufttechnik Abluftventil DN125 rund | E69: aus Stahlb. m. Einbaurahmen weiß lack. | F69: ST | G69: J | H69: 6.95 | I69: 0
A70: Alternative | C70: KLLZABLV080 | D70: =VLOOKUP($C70,db_Artikel,3) -> KL Lufttechnik Abluftventil DN80 | E70: =VLOOKUP($C70,db_Artikel,4) -> Kunststoff weiß | F70: =VLOOKUP($C70,db_Artikel,5) -> ST | G70: =VLOOKUP($C70,db_Artikel,6) -> J | H70: =VLOOKUP($C70,db_Artikel,7) -> 12.04 | I70: 0
A71: Alternative | C71: KLLZABLV100F | D71: KL Lufttechnik Abluftventil DN100 quad. | E71: m.Filter aus Stahlbl. weiß lackiert | F71: ST | G71: N | H71: 60.1 | I71: 0
A72: Alternative | C72: KLLZABLV125F | D72: KL Lufttechnik Abluftventil DN125 quad. | E72: m.Filter aus Stahlbl. weiß lackiert | F72: ST | G72: N | H72: 76.4 | I72: 0
A73: Alternative | C73: KLLVD100C | D73: KL Lufttechnik Vision Designgitter Cube | E73: DN100 ABL-G f. Decke, ZUL/ABL-G f. Wand | F73: ST | G73: J | H73: 66.12 | I73: 0
A74: Alternative | C74: KLLVD125C | D74: KL Lufttechnik Vision Designgitter Cube | E74: DN125 ABL-G f. Decke, ZUL/ABL-G f. Wand | F74: ST | G74: J | H74: 66.12 | I74: 0
B75: =ROUNDUP(Deckblatt!U44/10,-0.1) -> 0 | C75: KLLZVFI100 | D75: =VLOOKUP($C75,db_Artikel,3) -> KL Lufttechnik Ventilfilter G2 (10 | E75: =VLOOKUP($C75,db_Artikel,4) -> Stück) 100x150mm für Abluftventil DN100 | F75: =VLOOKUP($C75,db_Artikel,5) -> PK | G75: =VLOOKUP($C75,db_Artikel,6) -> J | H75: =VLOOKUP($C75,db_Artikel,7) -> 20.14 | I75: 0
B76: =ROUNDUP(Deckblatt!U45/10,-0.1) -> 0 | C76: KLLZVFI125 | D76: =VLOOKUP($C76,db_Artikel,3) -> KL Lufttechnik Ventilfilter G2 (10 | E76: =VLOOKUP($C76,db_Artikel,4) -> Stück) 125x150mm für Abluftventil DN125 | F76: =VLOOKUP($C76,db_Artikel,5) -> PK | G76: =VLOOKUP($C76,db_Artikel,6) -> J | H76: =VLOOKUP($C76,db_Artikel,7) -> 20.14 | I76: 0
B77: =B73 -> 0 | C77: KLLFIH100 | D77: =VLOOKUP($C77,db_Artikel,3) -> KL Lufttechnik Filterhalterung DN100 für | E77: =VLOOKUP($C77,db_Artikel,4) -> Ventilfilter in Komb. m. Vision Designg. | F77: =VLOOKUP($C77,db_Artikel,5) -> ST | G77: =VLOOKUP($C77,db_Artikel,6) -> N | H77: =VLOOKUP($C77,db_Artikel,7) -> 14.32 | I77: 0
B78: =B74 -> 0 | C78: KLLFIH125 | D78: =VLOOKUP($C78,db_Artikel,3) -> KL Lufttechnik Filterhalterung DN125 für | E78: =VLOOKUP($C78,db_Artikel,4) -> Ventilfilter in Komb. m. Vision Designg. | F78: =VLOOKUP($C78,db_Artikel,5) -> ST | G78: =VLOOKUP($C78,db_Artikel,6) -> N | H78: =VLOOKUP($C78,db_Artikel,7) -> 17.23 | I78: 0
D80: Systemkomponenten Aussen- und Fortluft
B81: 2 | C81: KLLZIRO125 | D81: =VLOOKUP($C81,db_Artikel,3) -> KL Lufttechnik Isoliertes Lüftungsrohr | E81: =VLOOKUP($C81,db_Artikel,4) -> DN125, Länge 1m, 15mm Wandst. inkl Muffe | F81: =VLOOKUP($C81,db_Artikel,5) -> ST | G81: =VLOOKUP($C81,db_Artikel,6) -> J | H81: =VLOOKUP($C81,db_Artikel,7) -> 31.76 | I81: =IFERROR(B81*H81,"") -> 63.52
B82: 2 | C82: KLLZIBO125 | D82: KL Lufttechnik Isolierter Bogen 90 Grad | E82: DN125, 15mm Wandstärke inkl. Muffe | F82: ST | G82: J | H82: 27.82 | I82: 55.64
A83: Option | C83: KLLZIVB125 | D83: KL Lufttechnik Verbinder (Muffe) für | E83: ISO-Rohrsystem DN125, 15mm Wandstärke | F83: ST | G83: J | H83: 9.02 | I83: 0
B84: 2 | C84: KLLZISCHE | D84: KL Lufttechnik Befestigungsschelle für | E84: ISO-Rohrsystem DN125 und DN160 | F84: ST | G84: J | H84: 10.28 | I84: 20.56
B85: =IF(OR(B86>0,B87>0,B88>0,B89>0),"",1) -> 1 | C85: =IF(Deckblatt!R33=0,K86,IF(Deckblatt!R33=1,K87,IF(Deckblatt!R33=2,K86,IF(Deckblatt!R33=3,K87, IF(Deckblatt!R33=4,K86,IF(Deckblatt!R33=5,K87,)))))) -> KLLFLA125RAF | D85: KL Lufttechnik AUL-FOL Fassadenanschl. | E85: DN125 AUL rechts | F85: ST | G85: J | H85: 213.62 | I85: 213.62
A86: Alternative | C86: KLLFLA125A | D86: =VLOOKUP($C86,db_Artikel,3) -> KL Lufttechnik AUL-Fassadenanschluss | E86: =VLOOKUP($C86,db_Artikel,4) -> DN125 für ISO-Rohrsystem 125/155 | F86: =VLOOKUP($C86,db_Artikel,5) -> ST | G86: J | H86: =VLOOKUP($C86,db_Artikel,7) -> 137.33 | I86: 0 | K86: KLLFLA125RAF
A87: Alternative | C87: KLLFLA125F | D87: =VLOOKUP($C87,db_Artikel,3) -> KL Lufttechnik FOL-Fassadenanschluss | E87: =VLOOKUP($C87,db_Artikel,4) -> DN125 für ISO-Rohrsystem 125/155 | F87: =VLOOKUP($C87,db_Artikel,5) -> ST | G87: J | H87: =VLOOKUP($C87,db_Artikel,7) -> 188.6 | I87: 0 | K87: KLLFLA125LAF
A88: Alternative | C88: KLLFLA125AF | D88: =VLOOKUP($C88,db_Artikel,3) -> KL Lufttechnik AUL/FOL-Fassadenanschluss | E88: =VLOOKUP($C88,db_Artikel,4) -> DN125 für ISO-Rohrsystem 125/155 | F88: =VLOOKUP($C88,db_Artikel,5) -> ST | G88: N | H88: =VLOOKUP($C88,db_Artikel,7) -> 34.88 | I88: 0
A89: Alternative | C89: KLLZDAHAU125 | D89: KL Lufttechnik Dachhaube DN125 | E89: ohne Dachpfanne | F89: ST | G89: N | H89: 187.57 | I89: 0
A90: Alternative | C90: KLLZDAPF125 | D90: KL Lufttechnik Dachpfanne DN125 | E90: für 25-45 Grad Dachneigung | F90: ST | G90: N | H90: 162.86 | I90: 0
D92: Inbetriebnahme und Anlageneinregulierung
B93: 1 | C93: HOIBNKLWRL | D93: =VLOOKUP($C93,db_Artikel,3) -> Inbetriebnahme und Anlageneinregulierung | E93: =VLOOKUP($C93,db_Artikel,4) ->  | F93: =VLOOKUP($C93,db_Artikel,5) -> PA | G93: =VLOOKUP($C93,db_Artikel,6) -> J | H93: =VLOOKUP($C93,db_Artikel,7) -> 385 | I93: =IFERROR(B93*H93,"") -> 385
D95: Planung
A96: Option | C96: PLANMODUL2/1 | D96: =VLOOKUP($C96,db_Artikel,3) -> Planung einer Komfortlüftungsanlage inkl. 2D- | E96: =VLOOKUP($C96,db_Artikel,4) -> Plänen, Luftmengen u. Massenauszug | F96: =VLOOKUP($C96,db_Artikel,5) -> PA | G96: =VLOOKUP($C96,db_Artikel,6) -> J | H96: =VLOOKUP($C96,db_Artikel,7) -> 175 | I96: =IFERROR(B96*H96,"") -> 0
A98: BRUTTOLISTENPREIS in Euro exkl. MwSt. | H98: € | I98: =SUM(I8:I97) -> 2954.77
A100: gültig bis 31.12.2025. KL-Lufttechnik übernimmt keine Gewähr für zukünftige Preisänderungen.
A102: ANNAHMEN: | B102: pro Zu- bzw. Abluftleitung wurde eine Länge von 12 m angenommen
B103: für die Verteileranbindung wurden 2 Schalldämpfer mit einer Länge von je 1m angenommen
B104: für die Aussen- bzw. Fortluftleitung wurde insgesamt eine Leitungslänge von 2m inkl. Befestigung bzw. 2 Bögen angenommen
B105: für die Aussenluftansaugung bzw. für die Fortluftausblasung wurde ein kombiniertes Wandgitter einkalkuliert
A107: ACHTUNG: | B107: Der vorliegende Kalkulationsvorschlag ist lediglich ein Kostenvoranschlag.
B108: Sofern nicht anders angegeben, wird bei dem Kalkulationsvorschlag von einer üblichen Raumbelegung (Schlafzimmer 2 Pers,; Kind/
B109: Gast/Büro je 1 Pers.; (Wohn-/Esszimmer im Mittel 3-4 Pers.) ausgegangen.
B110: Die Berechnung basiert auf der Grundlage der Ö Norm H 6038:2014
B111: Etwaige zusätzliche Formteile (T-Stücke, Reduktionen…) sind nicht im Angebot enthalten
A113: HAFTUNGSAUSSCHLUSS:
B114: Die zur Verfügung gestellten Berechnungsergebnisse und Unterlagen sind vom ausführenden Installateur vor der Verwendung im Geschäftsbereich
B115: eigenverantwortlich auf Vollständigkeit und Richtigkeit zu prüfen. Für die Richtigkeit und Vollständigkeit der Berechnungsergebnisse und/oder
B116: eventuelle Folgeschäden und Kosten, die aufgrund fehlerhafter Berechnung entstanden sind und/oder entstehen können, übernimmt die Firma KL-Luft-
B117: technik keine Haftung. Auch die Haftung für Erfüllungsgehilfen wird ausgeschlossen. Der Haftungsausschluss gilt für vertragliche und deliktische Ansprüche
B118: Ausgenommen davon bleibt die Haftung wegen Vorsatz und grober Fahrlässigkeit.

Sheet KL170S (hidden)
A1: Projekt Nr.: | B1: =Deckblatt!C5 -> 1 | D1: MATERIALAUFSTELLUNG FRISCHLUFTGERÄT KL170S INKL. BEDIENTEIL MINI UND VORHEIZREGISTER | F1: Datum: | I1: =TODAY() -> 2025-01-27
A2: Kunde: | B2: =Deckblatt!C6 -> Mustermann | F2: Verkäufer: | I2: =Deckblatt!L6 -> Mustermann
A4: Option/ | B4: Stück | C4: Artikelnummer | D4: Bezeichung 1 | E4: Bezeichnung 2 | F4: EH | G4: L | H4: Euro/EH | I4: Euro/Summe
A5: Alternative | I5: =I97 -> 3156.56
D7: Frischluftgerät KL170S
B8: 1 | C8: =IF(Deckblatt!R33=0,K8,IF(Deckblatt!R33=1,K10,IF(Deckblatt!R33=2,K9, IF(Deckblatt!R33=3,K11, IF(Deckblatt!R33=4,K9,IF(Deckblatt!R33=5,K11,)))))) -> KLL170SRV | D8: =VLOOKUP($C8,db_Artikel,3) -> KL Lufttechnik Lüftungsgerät KL170S ZUL | E8: =VLOOKUP($C8,db_Artikel,4) -> rechts mit VHR (Wand) | F8: =VLOOKUP($C8,db_Artikel,5) -> ST | G8: =VLOOKUP($C8,db_Artikel,6) -> J | H8: =VLOOKUP($C8,db_Artikel,7) -> 2218.21 | I8: =IFERROR(B8*H8,"") -> 2218.21 | K8: KLL170SRV
K9: KLL170SRVE
D10: Regelungskomponenten KL170S | K10: KLL170SLV
A11: Option | C11: KLLBTS | D11: =VLOOKUP($C11,db_Artikel,3) -> KL Lufttechnik Bedienteil Smart | E11: =VLOOKUP($C11,db_Artikel,4) -> kabelgebunden | F11: =VLOOKUP($C11,db_Artikel,5) -> ST | G11: =VLOOKUP($C11,db_Artikel,6) -> J | H11: =VLOOKUP($C11,db_Artikel,7) -> 394 | I11: =IFERROR(B11*H11,"") -> 0 | K11: KLL170SLVE
A12: Option | C12: KLLBTAPRA | D12: KL Lufttechnik Aufputzrahmen für Bedien- | E12: teil MINI und SMART | F12: ST | G12: N | H12: 30.52 | I12: =IFERROR(B12*H12,"") -> 0
A13: Option | C13: KLLSEP | D13: KL Lufttechnik Sensorplatine mit VOC- | E13: Luftqualitäts- und Feuchtesensor | F13: ST | G13: J | H13: 233.24 | I13: =IFERROR(B13*H13,"") -> 0
A14: Option | C14: KLLAUF | D14: KL Lufttechnik Außentemperaturfühler | F14: ST | G14: N | H14: 21.18 | I14: =IFERROR(B14*H14,"") -> 0
D16: Zubehör KL170S
A17: Option | C17: KLL170NHR | D17: =VLOOKUP($C17,db_Artikel,3) -> KL Lufttechnik PTC-Nachheizregister | E17: =VLOOKUP($C17,db_Artikel,4) -> für KL170XV/KL170S/KL170 | F17: =VLOOKUP($C17,db_Artikel,5) -> ST | G17: =VLOOKUP($C17,db_Artikel,6) -> N | H17: =VLOOKUP($C17,db_Artikel,7) -> 206.04 | I17: =IFERROR(B17*H17,"") -> 0
A18: Option | C18: KLL170ASPLM | D18: KL Lufttechnik Anschlussplatte Massivwand | E18: KL170XV/KL170S/KL170, auch f. WC Modul | F18: ST | G18: N | H18: 182.07 | I18: 0
A19: Option | C19: KLL170ASPLSW | D19: KL Lufttechnik Anschlussplatte Ständerwand | E19: KL170XV/KL170S/KL170, auch f. WC Modul | F19: ST | G19: N | H19: 150.41 | I19: 0
B20: =IF(Deckblatt!R33=0,1,IF(Deckblatt!R33=1,1,IF(Deckblatt!R33=2,1,IF(Deckblatt!R33=3,1,IF(Deckblatt!R33=4,"",IF(Deckblatt!R33=5,"")))))) -> 1 | C20: KLLZSIFON | D20: KL Lufttechnik Sifon mit Geruchssperre | E20: für KL170XV/KL170S/KL170 und KL350/500 | F20: ST | G20: J | H20: 58.85 | I20: 58.85
A21: Option | C21: KLL170FSET | D21: KL Lufttechnik 1x ZUL Filter F7 250x | E21: 250x47mm, 1x ABL Filter G4 250x230x47mm | F21: SE | G21: J | H21: 50.76 | I21: 0
A22: Option | C22: KLL170FSETF9 | D22: KL Lufttechnik 1x ZUL Filter F9 250x | E22: 250x47mm, 1x ABL Filter G4 250x230x47mm | F22: SE | G22: J | H22: 94.15 | I22: 0
D24: Verteiltechnik Zu- und Abluft Anbindung
B25: 2 | C25: KLLZSDS1251MN | D25: =VLOOKUP($C25,db_Artikel,3) -> KL Lufttechnik Flexibler Schalldämpfer | E25: =VLOOKUP($C25,db_Artikel,4) -> DN125, 1m, 32dB bei 250Hz, 25mm | F25: =VLOOKUP($C25,db_Artikel,5) -> ST | G25: =VLOOKUP($C25,db_Artikel,6) -> J | H25: =VLOOKUP($C25,db_Artikel,7) -> 70.58 | I25: =IFERROR(B25*H25,"") -> 141.16
D27: Verteiltechnik Schalldämmverteiler
B28: =dB_AnzSDV -> 0 | C28: KLLSDVEPP | D28: =VLOOKUP($C28,db_Artikel,3) -> KL Lufttechnik Schalldämmverteiler | E28: =VLOOKUP($C28,db_Artikel,4) -> 3x125/160mm Eing./28x75mm Ausg. | F28: =VLOOKUP($C28,db_Artikel,5) -> ST | H28: =VLOOKUP($C28,db_Artikel,7) -> 569.86 | I28: =IFERROR(B28*H28,"") -> 0
B29: =IF(B35=0,IF(db_AnzMaxAbg>14, 2, IF(db_AnzMaxAbg>8,1,"")),"") ->  | C29: KLLSDVEPPMOB | D29: =VLOOKUP($C29,db_Artikel,3) -> KL Lufttechnik Montagebügel Decke | E29: =VLOOKUP($C29,db_Artikel,4) -> für Schalldämmverteiler SDVEPP | F29: =VLOOKUP($C29,db_Artikel,5) -> ST | H29: =VLOOKUP($C29,db_Artikel,7) -> 69 | I29: =IFERROR(B29*H29,"") -> 
B30: =IF(B35=0,dB_AnzBog,"") -> 0 | C30: PKB75/87 | D30: =VLOOKUP($C30,db_Artikel,3) -> Poloplast Polokal NG Bogen PKB2134 | E30: =VLOOKUP($C30,db_Artikel,4) -> 87,5 Grad DN75 | F30: =VLOOKUP($C30,db_Artikel,5) -> ST | H30: =VLOOKUP($C30,db_Artikel,7) -> 11.18 | I30: =IFERROR(B30*H30,"") -> 0
D31: =db_AnzAbgZUL -> 0 | E31: aktive Zuluftanschlüsse
D32: =db_AnzAbgABL -> 0 | E32: aktive Abluftanschlüsse
D34: Anschlussplatte (max.16 Abgänge)
A35: Option | C35: KLLZSDVASPL/EPP | D35: =VLOOKUP($C35,db_Artikel,3) -> KL Lufttechnik Anschlussplatte für | E35: =VLOOKUP($C35,db_Artikel,4) -> Schalldämmverteiler EPP | F35: =VLOOKUP($C35,db_Artikel,5) -> ST | H35: =VLOOKUP($C35,db_Artikel,7) -> 109 | I35: =IFERROR(B35*H35,"") -> 0
A36: Option | C36: KLLZSDVASPL/EW | D36: =VLOOKUP($C36,db_Artikel,3) -> KL Lufttechnik Anschlussplattenerweiterung | E36: =VLOOKUP($C36,db_Artikel,4) -> zu EPP-Verteiler (2 Stück) | F36: =VLOOKUP($C36,db_Artikel,5) -> ST | H36: =VLOOKUP($C36,db_Artikel,7) -> 88 | I36: =IFERROR(B36*H36,"") -> 0
A37: Option | B37: =IF(B35>0,B35,"") ->  | C37: KLLZKUNI75EPP | D37: =VLOOKUP($C37,db_Artikel,3) -> KL Lufttechnik Verbindungsset SDV | E37: =VLOOKUP($C37,db_Artikel,4) -> und Anschlussplatte | F37: =VLOOKUP($C37,db_Artikel,5) -> ST | H37: =VLOOKUP($C37,db_Artikel,7) -> 51 | I37: =IFERROR(B37*H37,"") -> 
A38: Option | C38: KLLZHASAP6 | D38: =VLOOKUP($C38,db_Artikel,3) -> KL Lufttechnik Schlauchhalterung | E38: =VLOOKUP($C38,db_Artikel,4) -> zu Anschlussplatte SDV, beidseitig (1PK=2STK) | F38: =VLOOKUP($C38,db_Artikel,5) -> PK | H38: =VLOOKUP($C38,db_Artikel,7) -> 56.67 | I38: =IFERROR(B38*H38,"") -> 0
A39: Option | C39: KLLZHASAP12 | D39: =VLOOKUP($C39,db_Artikel,3) -> KL Lufttechnik Schlauchhalterung | E39: =VLOOKUP($C39,db_Artikel,4) -> zu Anschlussplatte SDV, einseitig | F39: =VLOOKUP($C39,db_Artikel,5) -> ST | H39: =VLOOKUP($C39,db_Artikel,7) -> 56.67 | I39: =IFERROR(B39*H39,"") -> 0
D41: Verteiltechnik Sternverteiler
B42: =IF(db_Verteiler=1,dB_AnzSTV_ZUL+dB_AnzSTV_ABL,"") ->  | C42: =IF(db_Verteiler=1,K42,"") ->  | D42: =VLOOKUP($C42,db_Artikel,3) ->  | E42: =VLOOKUP($C42,db_Artikel,4) ->  | F42: =VLOOKUP($C42,db_Artikel,5) ->  | G42: =VLOOKUP($C42,db_Artikel,6) ->  | H42: =VLOOKUP($C42,db_Artikel,7) ->  | I42: =IFERROR(B42*H42,"") ->  | K42: KLLV125756
B43: =IF(db_Verteiler=1,dB_AnzSTV_ZUL+dB_AnzSTV_ABL,"") ->  | C43: =IF(db_Verteiler=1,K43,"") ->  | D43: =VLOOKUP($C43,db_Artikel,3) ->  | E43: =VLOOKUP($C43,db_Artikel,4) ->  | F43: =VLOOKUP($C43,db_Artikel,5) ->  | G43: =VLOOKUP($C43,db_Artikel,6) ->  | H43: =VLOOKUP($C43,db_Artikel,7) ->  | I43: =IFERROR(B43*H43,"") ->  | K43: KLLZSNFL125
A44: Option | C44: KLLFSD752 | D44: =VLOOKUP($C44,db_Artikel,3) -> KL Lufttechnik Flachschalldämpfer 2xDN75 | E44: =VLOOKUP($C44,db_Artikel,4) -> Länge 500mm, 10dB bei 250Hz | F44: =VLOOKUP($C44,db_Artikel,5) -> ST | G44: =VLOOKUP($C44,db_Artikel,6) -> N | H44: =VLOOKUP($C44,db_Artikel,7) -> 162.44 | I44: =IFERROR(B44*H44,"") -> 0
D46: Verteiltechnik Zu- und Abluft Allgemein
B47: =ROUNDUP(dB_SchlauchLen/5,-1)*5 -> 0 | C47: KLLZSCHL75 | D47: =VLOOKUP($C47,db_Artikel,3) -> KL Lufttechnik Kunststoffschlauch DN75, | E47: =VLOOKUP($C47,db_Artikel,4) -> PE AD:75mm, ID:63mm | F47: =VLOOKUP($C47,db_Artikel,5) -> MT | G47: =VLOOKUP($C47,db_Artikel,6) -> J | H47: =VLOOKUP($C47,db_Artikel,7) -> 4.18 | I47: =IFERROR(B47*H47,"") -> 0
B48: =ROUNDDOWN(B47/51,0) -> 0 | C48: KLLZVEM75 | D48: KL Lufttechnik Verbindungsmuffe | E48: für Kunststoffschlauch DN75 | F48: ST | G48: J | H48: 5.19 | I48: 0
B49: =Deckblatt!U40 -> 0 | C49: KLLZSN10075 | D49: KL Lufttechnik Saugnische DN100 | E49: 1x DN75 max. 30m3/h, PE | F49: ST | G49: J | H49: 13.91 | I49: 0
B50: =Deckblatt!U40 -> 0 | C50: KLLZSNFL100 | D50: KL Lufttechnik Montageflansch DN100 | E50: für Saugnische DN100, PE | F50: ST | G50: J | H50: 6.44 | I50: 0
A51: Option | C51: KLLZSNVL100 | D51: KL Lufttechnik Verlängerung | E51: für Saugnische DN100 | F51: ST | G51: J | H51: 5.81 | I51: 0
B52: =Deckblatt!U41 -> 0 | C52: KLLZSN125752 | D52: KL Lufttechnik Saugnische DN125 | E52: 2x DN75 max. 60m3/h, PE | F52: ST | G52: J | H52: 25.64 | I52: 0
B53: =Deckblatt!U41 -> 0 | C53: KLLZSNFL125 | D53: KL Lufttechnik Montageflansch DN125 | E53: für Saugnische DN125, PE | F53: ST | G53: J | H53: 8.51 | I53: 0
A54: Option | C54: KLLZSNVL125 | D54: KL Lufttechnik Verlängerung f. Saugn.125 | E54: und Verteiler KLLV125756 | F54: ST | G54: J | H54: 7.27 | I54: 0
B55: =SUM(B63:B66)+SUM(B72:B73) -> 0 | C55: KLLZSDLR63 | D55: KL Lufttechnik Schalldämm-Luftregulier- | E55: einlage f.Saugn. DN100/125 u. Verteiler | F55: ST | G55: J | H55: 8.72 | I55: 0
D57: Sichtteile
B58: =Deckblatt!U42-B60-B63-B65 -> 0 | C58: KLLZZULV100 | D58: =VLOOKUP($C58,db_Artikel,3) -> KL Lufttechnik Zuluftventil DN100 rund | E58: =VLOOKUP($C58,db_Artikel,4) -> aus Stahlb. m. Einbaurahmen weiß lack. | F58: =VLOOKUP($C58,db_Artikel,5) -> ST | G58: =VLOOKUP($C58,db_Artikel,6) -> J | H58: =VLOOKUP($C58,db_Artikel,7) -> 5.61 | I58: =IFERROR(B58*H58,"") -> 0
B59: =Deckblatt!U43-B61-B62-B64-B66 -> 0 | C59: KLLZZULV125 | D59: KL Lufttechnik Zuluftventil DN125 rund | E59: aus Stahlb. m. Einbaurahmen weiß lack. | F59: ST | G59: J | H59: 6.95 | I59: 0
A60: Alternative | C60: KLLZULVW100 | D60: KL Lufttechnik Zuluftventil DN100 Wandm. | E60: aus Stahlb. m. Einbaurahmen weiß lack. | F60: ST | G60: J | H60: 39.24 | I60: 0
A61: Alternative | C61: KLLZULVW125 | D61: KL Lufttechnik Zuluftventil DN125 Wandm. | E61: aus Stahlb. m. Einbaurahmen weiß lack. | F61: ST | G61: J | H61: 46.09 | I61: 0
A62: Alternative | C62: KLLBOA801 | D62: KL Lufttechnik Vision Designauslass Floor | E62: DN125 ZUL-A f. Boden, Saugn.u.Reguliere. | F62: ST | G62: J | H62: 286.49 | I62: 0
A63: Alternative | C63: KLLVD100C | D63: KL Lufttechnik Vision Designgitter Cube | E63: DN100 ABL-G f. Decke, ZUL/ABL-G f. Wand | F63: ST | G63: J | H63: 66.12 | I63: 0
A64: Alternative | C64: KLLVD125C | D64: KL Lufttechnik Vision Designgitter Cube | E64: DN125 ABL-G f. Decke, ZUL/ABL-G f. Wand | F64: ST | G64: J | H64: 66.12 | I64: 0
A65: Altern. DN100 | C65: KLLVD100125P | D65: KL Lufttechnik Vision Designgitter Plane | E65: DN100/125 ZUL-G für Decke | F65: ST | G65: J | H65: 66.12 | I65: 0
A66: Altern. DN125 | C66: KLLVD100125P | D66: KL Lufttechnik Vision Designgitter Plane | E66: DN100/125 ZUL-G für Decke | F66: ST | G66: J | H66: 66.12 | I66: 0
B67: =Deckblatt!U44-B70-B72 -> 0 | C67: KLLZABLV100 | D67: KL Lufttechnik Abluftventil DN100 rund | E67: aus Stahlb. m. Einbaurahmen weiß lack. | F67: ST | G67: J | H67: 5.61 | I67: 0
B68: =Deckblatt!U45-B71-B73 -> 0 | C68: KLLZABLV125 | D68: KL Lufttechnik Abluftventil DN125 rund | E68: aus Stahlb. m. Einbaurahmen weiß lack. | F68: ST | G68: J | H68: 6.95 | I68: 0
A69: Alternative | C69: KLLZABLV080 | D69: =VLOOKUP($C69,db_Artikel,3) -> KL Lufttechnik Abluftventil DN80 | E69: =VLOOKUP($C69,db_Artikel,4) -> Kunststoff weiß | F69: =VLOOKUP($C69,db_Artikel,5) -> ST | G69: =VLOOKUP($C69,db_Artikel,6) -> J | H69: =VLOOKUP($C69,db_Artikel,7) -> 12.04 | I69: 0
A70: Alternative | C70: KLLZABLV100F | D70: KL Lufttechnik Abluftventil DN100 quad. | E70: m.Filter aus Stahlbl. weiß lackiert | F70: ST | G70: N | H70: 60.1 | I70: 0
A71: Alternative | C71: KLLZABLV125F | D71: KL Lufttechnik Abluftventil DN125 quad. | E71: m.Filter aus Stahlbl. weiß lackiert | F71: ST | G71: N | H71: 76.4 | I71: 0
A72: Alternative | C72: KLLVD100C | D72: KL Lufttechnik Vision Designgitter Cube | E72: DN100 ABL-G f. Decke, ZUL/ABL-G f. Wand | F72: ST | G72: J | H72: 66.12 | I72: 0
A73: Alternative | C73: KLLVD125C | D73: KL Lufttechnik Vision Designgitter Cube | E73: DN125 ABL-G f. Decke, ZUL/ABL-G f. Wand | F73: ST | G73: J | H73: 66.12 | I73: 0
B74: =ROUNDUP(Deckblatt!U44/10,-0.1) -> 0 | C74: KLLZVFI100 | D74: =VLOOKUP($C74,db_Artikel,3) -> KL Lufttechnik Ventilfilter G2 (10 | E74: =VLOOKUP($C74,db_Artikel,4) -> Stück) 100x150mm für Abluftventil DN100 | F74: =VLOOKUP($C74,db_Artikel,5) -> PK | G74: =VLOOKUP($C74,db_Artikel,6) -> J | H74: =VLOOKUP($C74,db_Artikel,7) -> 20.14 | I74: 0
B75: =ROUNDUP(Deckblatt!U45/10,-0.1) -> 0 | C75: KLLZVFI125 | D75: =VLOOKUP($C75,db_Artikel,3) -> KL Lufttechnik Ventilfilter G2 (10 | E75: =VLOOKUP($C75,db_Artikel,4) -> Stück) 125x150mm für Abluftventil DN125 | F75: =VLOOKUP($C75,db_Artikel,5) -> PK | G75: =VLOOKUP($C75,db_Artikel,6) -> J | H75: =VLOOKUP($C75,db_Artikel,7) -> 20.14 | I75: 0
B76: =B72 -> 0 | C76: KLLFIH100 | D76: =VLOOKUP($C76,db_Artikel,3) -> KL Lufttechnik Filterhalterung DN100 für | E76: =VLOOKUP($C76,db_Artikel,4) -> Ventilfilter in Komb. m. Vision Designg. | F76: =VLOOKUP($C76,db_Artikel,5) -> ST | G76: =VLOOKUP($C76,db_Artikel,6) -> N | H76: =VLOOKUP($C76,db_Artikel,7) -> 14.32 | I76: 0
B77: =B73 -> 0 | C77: KLLFIH125 | D77: =VLOOKUP($C77,db_Artikel,3) -> KL Lufttechnik Filterhalterung DN125 für | E77: =VLOOKUP($C77,db_Artikel,4) -> Ventilfilter in Komb. m. Vision Designg. | F77: =VLOOKUP($C77,db_Artikel,5) -> ST | G77: =VLOOKUP($C77,db_Artikel,6) -> N | H77: =VLOOKUP($C77,db_Artikel,7) -> 17.23 | I77: 0
D79: Systemkomponenten Aussen- und Fortluft
B80: 2 | C80: KLLZIRO125 | D80: =VLOOKUP($C80,db_Artikel,3) -> KL Lufttechnik Isoliertes Lüftungsrohr | E80: =VLOOKUP($C80,db_Artikel,4) -> DN125, Länge 1m, 15mm Wandst. inkl Muffe | F80: =VLOOKUP($C80,db_Artikel,5) -> ST | G80: =VLOOKUP($C80,db_Artikel,6) -> J | H80: =VLOOKUP($C80,db_Artikel,7) -> 31.76 | I80: =IFERROR(B80*H80,"") -> 63.52
B81: 2 | C81: KLLZIBO125 | D81: KL Lufttechnik Isolierter Bogen 90 Grad | E81: DN125, 15mm Wandstärke inkl. Muffe | F81: ST | G81: J | H81: 27.82 | I81: 55.64
A82: Option | C82: KLLZIVB125 | D82: KL Lufttechnik Verbinder (Muffe) für | E82: ISO-Rohrsystem DN125, 15mm Wandstärke | F82: ST | G82: J | H82: 9.02 | I82: 0
B83: 2 | C83: KLLZISCHE | D83: KL Lufttechnik Befestigungsschelle für | E83: ISO-Rohrsystem DN125 und DN160 | F83: ST | G83: J | H83: 10.28 | I83: 20.56
B84: =IF(OR(B85>0,B86>0,B87>0,B88>0),"",1) -> 1 | C84: =IF(Deckblatt!R33=0,K85,IF(Deckblatt!R33=1,K86,IF(Deckblatt!R33=2,K85,IF(Deckblatt!R33=3,K86, IF(Deckblatt!R33=4,K85,IF(Deckblatt!R33=5,K86,)))))) -> KLLFLA125RAF | D84: KL Lufttechnik AUL-FOL Fassadenanschl. | E84: DN125 AUL rechts | F84: ST | G84: J | H84: 213.62 | I84: 213.62
A85: Alternative | C85: KLLFLA125A | D85: =VLOOKUP($C85,db_Artikel,3) -> KL Lufttechnik AUL-Fassadenanschluss | E85: =VLOOKUP($C85,db_Artikel,4) -> DN125 für ISO-Rohrsystem 125/155 | F85: =VLOOKUP($C85,db_Artikel,5) -> ST | G85: J | H85: =VLOOKUP($C85,db_Artikel,7) -> 137.33 | I85: 0 | K85: KLLFLA125RAF
A86: Alternative | C86: KLLFLA125F | D86: =VLOOKUP($C86,db_Artikel,3) -> KL Lufttechnik FOL-Fassadenanschluss | E86: =VLOOKUP($C86,db_Artikel,4) -> DN125 für ISO-Rohrsystem 125/155 | F86: =VLOOKUP($C86,db_Artikel,5) -> ST | G86: J | H86: =VLOOKUP($C86,db_Artikel,7) -> 188.6 | I86: 0 | K86: KLLFLA125LAF
A87: Alternative | C87: KLLFLA125AF | D87: =VLOOKUP($C87,db_Artikel,3) -> KL Lufttechnik AUL/FOL-Fassadenanschluss | E87: =VLOOKUP($C87,db_Artikel,4) -> DN125 für ISO-Rohrsystem 125/155 | F87: =VLOOKUP($C87,db_Artikel,5) -> ST | G87: N | H87: =VLOOKUP($C87,db_Artikel,7) -> 34.88 | I87: 0
A88: Alternative | C88: KLLZDAHAU125 | D88: =VLOOKUP($C88,db_Artikel,3) -> KL Lufttechnik Dachhaube DN125 | E88: ohne Dachpfanne | F88: ST | G88: N | H88: 187.57 | I88: 0
A89: Alternative | C89: KLLZDAPF125 | D89: KL Lufttechnik Dachpfanne DN125 | E89: für 25-45 Grad Dachneigung | F89: ST | G89: N | H89: 162.86 | I89: 0
D91: Inbetriebnahme und Anlageneinregulierung
B92: 1 | C92: HOIBNKLWRL | D92: =VLOOKUP($C92,db_Artikel,3) -> Inbetriebnahme und Anlageneinregulierung | E92: =VLOOKUP($C92,db_Artikel,4) ->  | F92: =VLOOKUP($C92,db_Artikel,5) -> PA | G92: =VLOOKUP($C92,db_Artikel,6) -> J | H92: =VLOOKUP($C92,db_Artikel,7) -> 385 | I92: =IFERROR(B92*H92,"") -> 385
D94: Planung
A95: Option | C95: PLANMODUL2/1 | D95: =VLOOKUP($C95,db_Artikel,3) -> Planung einer Komfortlüftungsanlage inkl. 2D- | E95: =VLOOKUP($C95,db_Artikel,4) -> Plänen, Luftmengen u. Massenauszug | F95: =VLOOKUP($C95,db_Artikel,5) -> PA | G95: =VLOOKUP($C95,db_Artikel,6) -> J | H95: =VLOOKUP($C95,db_Artikel,7) -> 175 | I95: =IFERROR(B95*H95,"") -> 0
A97: BRUTTOLISTENPREIS in Euro exkl. MwSt. | H97: € | I97: =SUM(I8:I96) -> 3156.56
A99: gültig bis 31.12.2025. KL-Lufttechnik übernimmt keine Gewähr für zukünftige Preisänderungen.
A101: ANNAHMEN: | B101: pro Zu- bzw. Abluftleitung wurde eine Länge von 12 m angenommen
B102: für die Verteileranbindung wurden 2 Schalldämpfer mit einer Länge von je 1m angenommen
B103: für die Aussen- bzw. Fortluftleitung wurde insgesamt eine Leitungslänge von 2m inkl. Befestigung bzw. 2 Bögen angenommen
B104: für die Aussenluftansaugung bzw. für die Fortluftausblasung wurde ein kombiniertes Wandgitter einkalkuliert
A106: ACHTUNG: | B106: Der vorliegende Kalkulationsvorschlag ist lediglich ein Kostenvoranschlag.
B107: Sofern nicht anders angegeben, wird bei dem Kalkulationsvorschlag von einer üblichen Raumbelegung (Schlafzimmer 2 Pers,; Kind/
B108: Gast/Büro je 1 Pers.; (Wohn-/Esszimmer im Mittel 3-4 Pers.) ausgegangen.
B109: Die Berechnung basiert auf der Grundlage der Ö Norm H 6038:2014
B110: Etwaige zusätzliche Formteile (T-Stücke, Reduktionen…) sind nicht im Angebot enthalten
A112: HAFTUNGSAUSSCHLUSS:
B113: Die zur Verfügung gestellten Berechnungsergebnisse und Unterlagen sind vom ausführenden Installateur vor der Verwendung im Geschäftsbereich
B114: eigenverantwortlich auf Vollständigkeit und Richtigkeit zu prüfen. Für die Richtigkeit und Vollständigkeit der Berechnungsergebnisse und/oder
B115: eventuelle Folgeschäden und Kosten, die aufgrund fehlerhafter Berechnung entstanden sind und/oder entstehen können, übernimmt die Firma KL-Luft-
B116: technik keine Haftung. Auch die Haftung für Erfüllungsgehilfen wird ausgeschlossen. Der Haftungsausschluss gilt für vertragliche und deliktische Ansprüche
B117: Ausgenommen davon bleibt die Haftung wegen Vorsatz und grober Fahrlässigkeit.

Sheet KL170 (hidden)
A1: Projekt Nr.: | B1: =Deckblatt!C5 -> 1 | D1: MATERIALAUFSTELLUNG FRISCHLUFTGERÄT KL170 INKL. BEDIENTEIL MINI UND VORHEIZREGISTER | F1: Datum: | I1: =TODAY() -> 2025-01-27
A2: Kunde: | B2: =Deckblatt!C6 -> Mustermann | F2: Verkäufer: | I2: =Deckblatt!L6 -> Mustermann
A4: Option/ | B4: Stück | C4: Artikelnummer | D4: Bezeichung 1 | E4: Bezeichnung 2 | F4: EH | G4: L | H4: Euro/EH | I4: Euro/Summe
A5: Alternative | I5: =I100 -> 3454.04
D7: Frischluftgerät KL170
B8: 1 | C8: =IF(Deckblatt!R33=0,K8,IF(Deckblatt!R33=1,K10,IF(Deckblatt!R33=2,K9, IF(Deckblatt!R33=3,K11, IF(Deckblatt!R33=4,K9,IF(Deckblatt!R33=5,K11,)))))) -> KLL170RV | D8: =VLOOKUP($C8,db_Artikel,3) -> KL Lufttechnik Lüftungsgerät KL170 ZUL | E8: =VLOOKUP($C8,db_Artikel,4) -> rechts mit VHR (Wand) | F8: =VLOOKUP($C8,db_Artikel,5) -> ST | G8: =VLOOKUP($C8,db_Artikel,6) -> N | H8: =VLOOKUP($C8,db_Artikel,7) -> 2515.69 | I8: =IFERROR(B8*H8,"") -> 2515.69 | K8: KLL170RV
K9: KLL170RVE
D10: Regelungskomponenten KL170 | K10: KLL170LV
A11: Option | C11: KLLBTS | D11: =VLOOKUP($C11,db_Artikel,3) -> KL Lufttechnik Bedienteil Smart | E11: =VLOOKUP($C11,db_Artikel,4) -> kabelgebunden | F11: =VLOOKUP($C11,db_Artikel,5) -> ST | G11: =VLOOKUP($C11,db_Artikel,6) -> J | H11: =VLOOKUP($C11,db_Artikel,7) -> 394 | I11: =IFERROR(B11*H11,"") -> 0 | K11: KLL170LVE
A12: Option | C12: KLLBTAPRA | D12: KL Lufttechnik Aufputzrahmen für Bedien- | E12: teil MINI und SMART | F12: ST | G12: N | H12: 30.52 | I12: =IFERROR(B12*H12,"") -> 0
A13: Option | C13: KLLSEP | D13: KL Lufttechnik Sensorplatine mit VOC- | E13: Luftqualitäts- und Feuchtesensor | F13: ST | G13: J | H13: 233.24 | I13: =IFERROR(B13*H13,"") -> 0
A14: Option | C14: KLLAUF | D14: KL Lufttechnik Außentemperaturfühler | F14: ST | G14: N | H14: 21.18 | I14: =IFERROR(B14*H14,"") -> 0
D16: Zubehör KL170
A17: Option | C17: KLL170NHR | D17: =VLOOKUP($C17,db_Artikel,3) -> KL Lufttechnik PTC-Nachheizregister | E17: =VLOOKUP($C17,db_Artikel,4) -> für KL170XV/KL170S/KL170 | F17: =VLOOKUP($C17,db_Artikel,5) -> ST | G17: =VLOOKUP($C17,db_Artikel,6) -> N | H17: =VLOOKUP($C17,db_Artikel,7) -> 206.04 | I17: =IFERROR(B17*H17,"") -> 0
A18: Option | C18: KLL170ASPLM | D18: KL Lufttechnik Anschlussplatte Massivwand | E18: KL170XV/KL170S/KL170, auch f. WC Modul | F18: ST | G18: N | H18: 182.07 | I18: 0
A19: Option | C19: KLL170ASPLSW | D19: KL Lufttechnik Anschlussplatte Ständerwand | E19: KL170XV/KL170S/KL170, auch f. WC Modul | F19: ST | G19: N | H19: 150.41 | I19: 0
B20: =IF(Deckblatt!R33=0,1,IF(Deckblatt!R33=1,1,IF(Deckblatt!R33=2,1,IF(Deckblatt!R33=3,1,IF(Deckblatt!R33=4,"",IF(Deckblatt!R33=5,"")))))) -> 1 | C20: KLLZSIFON | D20: KL Lufttechnik Sifon mit Geruchssperre | E20: für KL170XV/KL170S/KL170 und KL350/500 | F20: ST | G20: J | H20: 58.85 | I20: 58.85
A21: Option | C21: KLL170EBR/H | D21: =VLOOKUP($C21,db_Artikel,3) -> KL Lufttechnik Einbaurahmen für KL170 | E21: =VLOOKUP($C21,db_Artikel,4) -> 2 St. lang, 1 St. kurz, 1 St. kurz/hoch | F21: =VLOOKUP($C21,db_Artikel,5) -> SE | G21: =VLOOKUP($C21,db_Artikel,6) -> N | H21: =VLOOKUP($C21,db_Artikel,7) -> 122.07 | I21: 0
A22: Option | C22: KLL170EBR | D22: =VLOOKUP($C22,db_Artikel,3) -> KL Lufttechnik Einbaurahmen für KL170 2 | E22: =VLOOKUP($C22,db_Artikel,4) -> Stück lang und 2 Stück kurz | F22: =VLOOKUP($C22,db_Artikel,5) -> SE | G22: =VLOOKUP($C22,db_Artikel,6) -> N | H22: =VLOOKUP($C22,db_Artikel,7) -> 108.99 | I22: 0
A23: Option | C23: KLL170EBRH | D23: KL Lufttechnik Einbaurahmenhalterung | E23: für KL170, 4 Stk. | F23: SE | G23: N | H23: 51.8 | I23: 0
A24: Option | C24: KLL170FSET | D24: KL Lufttechnik 1x ZUL Filter F7 250x | E24: 250x47mm, 1x ABL Filter G4 250x230x47mm | F24: SE | G24: J | H24: 50.76 | I24: 0
A25: Option | C25: KLL170FSETF9 | D25: KL Lufttechnik 1x ZUL Filter F9 250x | E25: 250x47mm, 1x ABL Filter G4 250x230x47mm | F25: SE | G25: J | H25: 94.15 | I25: 0
D27: Verteiltechnik Zu- und Abluft Anbindung
B28: 2 | C28: KLLZSDS1251MN | D28: =VLOOKUP($C28,db_Artikel,3) -> KL Lufttechnik Flexibler Schalldämpfer | E28: =VLOOKUP($C28,db_Artikel,4) -> DN125, 1m, 32dB bei 250Hz, 25mm | F28: =VLOOKUP($C28,db_Artikel,5) -> ST | G28: =VLOOKUP($C28,db_Artikel,6) -> J | H28: =VLOOKUP($C28,db_Artikel,7) -> 70.58 | I28: =IFERROR(B28*H28,"") -> 141.16
D30: Verteiltechnik Schalldämmverteiler
B31: =dB_AnzSDV -> 0 | C31: KLLSDVEPP | D31: =VLOOKUP($C31,db_Artikel,3) -> KL Lufttechnik Schalldämmverteiler | E31: =VLOOKUP($C31,db_Artikel,4) -> 3x125/160mm Eing./28x75mm Ausg. | F31: =VLOOKUP($C31,db_Artikel,5) -> ST | H31: =VLOOKUP($C31,db_Artikel,7) -> 569.86 | I31: =IFERROR(B31*H31,"") -> 0
B32: =IF(B38=0,IF(db_AnzMaxAbg>14, 2, IF(db_AnzMaxAbg>8,1,"")),"") ->  | C32: KLLSDVEPPMOB | D32: =VLOOKUP($C32,db_Artikel,3) -> KL Lufttechnik Montagebügel Decke | E32: =VLOOKUP($C32,db_Artikel,4) -> für Schalldämmverteiler SDVEPP | F32: =VLOOKUP($C32,db_Artikel,5) -> ST | H32: =VLOOKUP($C32,db_Artikel,7) -> 69 | I32: =IFERROR(B32*H32,"") -> 
B33: =IF(B38=0,dB_AnzBog,"") -> 0 | C33: PKB75/87 | D33: =VLOOKUP($C33,db_Artikel,3) -> Poloplast Polokal NG Bogen PKB2134 | E33: =VLOOKUP($C33,db_Artikel,4) -> 87,5 Grad DN75 | F33: =VLOOKUP($C33,db_Artikel,5) -> ST | H33: =VLOOKUP($C33,db_Artikel,7) -> 11.18 | I33: =IFERROR(B33*H33,"") -> 0
D34: =db_AnzAbgZUL -> 0 | E34: aktive Zuluftanschlüsse
D35: =db_AnzAbgABL -> 0 | E35: aktive Abluftanschlüsse
D37: Anschlussplatte (max.16 Abgänge)
A38: Option | C38: KLLZSDVASPL/EPP | D38: =VLOOKUP($C38,db_Artikel,3) -> KL Lufttechnik Anschlussplatte für | E38: =VLOOKUP($C38,db_Artikel,4) -> Schalldämmverteiler EPP | F38: =VLOOKUP($C38,db_Artikel,5) -> ST | H38: =VLOOKUP($C38,db_Artikel,7) -> 109 | I38: =IFERROR(B38*H38,"") -> 0
A39: Option | C39: KLLZSDVASPL/EW | D39: =VLOOKUP($C39,db_Artikel,3) -> KL Lufttechnik Anschlussplattenerweiterung | E39: =VLOOKUP($C39,db_Artikel,4) -> zu EPP-Verteiler (2 Stück) | F39: =VLOOKUP($C39,db_Artikel,5) -> ST | H39: =VLOOKUP($C39,db_Artikel,7) -> 88 | I39: =IFERROR(B39*H39,"") -> 0
A40: Option | B40: =IF(B38>0,B38,"") ->  | C40: KLLZKUNI75EPP | D40: =VLOOKUP($C40,db_Artikel,3) -> KL Lufttechnik Verbindungsset SDV | E40: =VLOOKUP($C40,db_Artikel,4) -> und Anschlussplatte | F40: =VLOOKUP($C40,db_Artikel,5) -> ST | H40: =VLOOKUP($C40,db_Artikel,7) -> 51 | I40: =IFERROR(B40*H40,"") -> 
A41: Option | C41: KLLZHASAP6 | D41: =VLOOKUP($C41,db_Artikel,3) -> KL Lufttechnik Schlauchhalterung | E41: =VLOOKUP($C41,db_Artikel,4) -> zu Anschlussplatte SDV, beidseitig (1PK=2STK) | F41: =VLOOKUP($C41,db_Artikel,5) -> PK | H41: =VLOOKUP($C41,db_Artikel,7) -> 56.67 | I41: =IFERROR(B41*H41,"") -> 0
A42: Option | C42: KLLZHASAP12 | D42: =VLOOKUP($C42,db_Artikel,3) -> KL Lufttechnik Schlauchhalterung | E42: =VLOOKUP($C42,db_Artikel,4) -> zu Anschlussplatte SDV, einseitig | F42: =VLOOKUP($C42,db_Artikel,5) -> ST | H42: =VLOOKUP($C42,db_Artikel,7) -> 56.67 | I42: =IFERROR(B42*H42,"") -> 0
D44: Verteiltechnik Sternverteiler
B45: =IF(db_Verteiler=1,dB_AnzSTV_ZUL+dB_AnzSTV_ABL,"") ->  | C45: =IF(db_Verteiler=1,K45,"") ->  | D45: =VLOOKUP($C45,db_Artikel,3) ->  | E45: =VLOOKUP($C45,db_Artikel,4) ->  | F45: =VLOOKUP($C45,db_Artikel,5) ->  | G45: =VLOOKUP($C45,db_Artikel,6) ->  | H45: =VLOOKUP($C45,db_Artikel,7) ->  | I45: =IFERROR(B45*H45,"") ->  | K45: KLLV125756
B46: =IF(db_Verteiler=1,dB_AnzSTV_ZUL+dB_AnzSTV_ABL,"") ->  | C46: =IF(db_Verteiler=1,K46,"") ->  | D46: =VLOOKUP($C46,db_Artikel,3) ->  | E46: =VLOOKUP($C46,db_Artikel,4) ->  | F46: =VLOOKUP($C46,db_Artikel,5) ->  | G46: =VLOOKUP($C46,db_Artikel,6) ->  | H46: =VLOOKUP($C46,db_Artikel,7) ->  | I46: =IFERROR(B46*H46,"") ->  | K46: KLLZSNFL125
A47: Option | C47: KLLFSD752 | D47: =VLOOKUP($C47,db_Artikel,3) -> KL Lufttechnik Flachschalldämpfer 2xDN75 | E47: =VLOOKUP($C47,db_Artikel,4) -> Länge 500mm, 10dB bei 250Hz | F47: =VLOOKUP($C47,db_Artikel,5) -> ST | G47: =VLOOKUP($C47,db_Artikel,6) -> N | H47: =VLOOKUP($C47,db_Artikel,7) -> 162.44 | I47: =IFERROR(B47*H47,"") -> 0
D49: Verteiltechnik Zu- und Abluft Allgemein
B50: =ROUNDUP(dB_SchlauchLen/5,-1)*5 -> 0 | C50: KLLZSCHL75 | D50: =VLOOKUP($C50,db_Artikel,3) -> KL Lufttechnik Kunststoffschlauch DN75, | E50: =VLOOKUP($C50,db_Artikel,4) -> PE AD:75mm, ID:63mm | F50: =VLOOKUP($C50,db_Artikel,5) -> MT | G50: =VLOOKUP($C50,db_Artikel,6) -> J | H50: =VLOOKUP($C50,db_Artikel,7) -> 4.18 | I50: =IFERROR(B50*H50,"") -> 0
B51: =ROUNDDOWN(B50/51,0) -> 0 | C51: KLLZVEM75 | D51: KL Lufttechnik Verbindungsmuffe | E51: für Kunststoffschlauch DN75 | F51: ST | G51: J | H51: 5.19 | I51: 0
B52: =Deckblatt!U40 -> 0 | C52: KLLZSN10075 | D52: KL Lufttechnik Saugnische DN100 | E52: 1x DN75 max. 30m3/h, PE | F52: ST | G52: J | H52: 13.91 | I52: 0
B53: =Deckblatt!U40 -> 0 | C53: KLLZSNFL100 | D53: KL Lufttechnik Montageflansch DN100 | E53: für Saugnische DN100, PE | F53: ST | G53: J | H53: 6.44 | I53: 0
A54: Option | C54: KLLZSNVL100 | D54: KL Lufttechnik Verlängerung | E54: für Saugnische DN100 | F54: ST | G54: J | H54: 5.81 | I54: 0
B55: =Deckblatt!U41 -> 0 | C55: KLLZSN125752 | D55: KL Lufttechnik Saugnische DN125 | E55: 2x DN75 max. 60m3/h, PE | F55: ST | G55: J | H55: 25.64 | I55: 0
B56: =Deckblatt!U41 -> 0 | C56: KLLZSNFL125 | D56: KL Lufttechnik Montageflansch DN125 | E56: für Saugnische DN125, PE | F56: ST | G56: J | H56: 8.51 | I56: 0
A57: Option | C57: KLLZSNVL125 | D57: KL Lufttechnik Verlängerung f. Saugn.125 | E57: und Verteiler KLLV125756 | F57: ST | G57: J | H57: 7.27 | I57: 0
B58: =SUM(B66:B69)+SUM(B75:B76) -> 0 | C58: KLLZSDLR63 | D58: KL Lufttechnik Schalldämm-Luftregulier- | E58: einlage f.Saugn. DN100/125 u. Verteiler | F58: ST | G58: J | H58: 8.72 | I58: 0
D60: Sichtteile
B61: =Deckblatt!U42-B63-B66-B68 -> 0 | C61: KLLZZULV100 | D61: =VLOOKUP($C61,db_Artikel,3) -> KL Lufttechnik Zuluftventil DN100 rund | E61: =VLOOKUP($C61,db_Artikel,4) -> aus Stahlb. m. Einbaurahmen weiß lack. | F61: =VLOOKUP($C61,db_Artikel,5) -> ST | G61: =VLOOKUP($C61,db_Artikel,6) -> J | H61: =VLOOKUP($C61,db_Artikel,7) -> 5.61 | I61: =IFERROR(B61*H61,"") -> 0
B62: =Deckblatt!U43-B64-B65-B67-B69 -> 0 | C62: KLLZZULV125 | D62: KL Lufttechnik Zuluftventil DN125 rund | E62: aus Stahlb. m. Einbaurahmen weiß lack. | F62: ST | G62: J | H62: 6.95 | I62: 0
A63: Alternative | C63: KLLZULVW100 | D63: KL Lufttechnik Zuluftventil DN100 Wandm. | E63: aus Stahlb. m. Einbaurahmen weiß lack. | F63: ST | G63: J | H63: 39.24 | I63: 0
A64: Alternative | C64: KLLZULVW125 | D64: KL Lufttechnik Zuluftventil DN125 Wandm. | E64: aus Stahlb. m. Einbaurahmen weiß lack. | F64: ST | G64: J | H64: 46.09 | I64: 0
A65: Alternative | C65: KLLBOA801 | D65: KL Lufttechnik Vision Designauslass Floor | E65: DN125 ZUL-A f. Boden, Saugn.u.Reguliere. | F65: ST | G65: J | H65: 286.49 | I65: 0
A66: Alternative | C66: KLLVD100C | D66: KL Lufttechnik Vision Designgitter Cube | E66: DN100 ABL-G f. Decke, ZUL/ABL-G f. Wand | F66: ST | G66: J | H66: 66.12 | I66: 0
A67: Alternative | C67: KLLVD125C | D67: KL Lufttechnik Vision Designgitter Cube | E67: DN125 ABL-G f. Decke, ZUL/ABL-G f. Wand | F67: ST | G67: J | H67: 66.12 | I67: 0
A68: Altern. DN100 | C68: KLLVD100125P | D68: KL Lufttechnik Vision Designgitter Plane | E68: DN100/125 ZUL-G für Decke | F68: ST | G68: J | H68: 66.12 | I68: 0
A69: Altern. DN125 | C69: KLLVD100125P | D69: KL Lufttechnik Vision Designgitter Plane | E69: DN100/125 ZUL-G für Decke | F69: ST | G69: J | H69: 66.12 | I69: 0
B70: =Deckblatt!U44-B73-B75 -> 0 | C70: KLLZABLV100 | D70: KL Lufttechnik Abluftventil DN100 rund | E70: aus Stahlb. m. Einbaurahmen weiß lack. | F70: ST | G70: J | H70: 5.61 | I70: 0
B71: =Deckblatt!U45-B74-B76 -> 0 | C71: KLLZABLV125 | D71: KL Lufttechnik Abluftventil DN125 rund | E71: aus Stahlb. m. Einbaurahmen weiß lack. | F71: ST | G71: J | H71: 6.95 | I71: 0
A72: Alternative | C72: KLLZABLV080 | D72: =VLOOKUP($C72,db_Artikel,3) -> KL Lufttechnik Abluftventil DN80 | E72: =VLOOKUP($C72,db_Artikel,4) -> Kunststoff weiß | F72: =VLOOKUP($C72,db_Artikel,5) -> ST | G72: =VLOOKUP($C72,db_Artikel,6) -> J | H72: =VLOOKUP($C72,db_Artikel,7) -> 12.04 | I72: 0
A73: Alternative | C73: KLLZABLV100F | D73: KL Lufttechnik Abluftventil DN100 quad. | E73: m.Filter aus Stahlbl. weiß lackiert | F73: ST | G73: N | H73: 60.1 | I73: 0
A74: Alternative | C74: KLLZABLV125F | D74: KL Lufttechnik Abluftventil DN125 quad. | E74: m.Filter aus Stahlbl. weiß lackiert | F74: ST | G74: N | H74: 76.4 | I74: 0
A75: Alternative | C75: KLLVD100C | D75: KL Lufttechnik Vision Designgitter Cube | E75: DN100 ABL-G f. Decke, ZUL/ABL-G f. Wand | F75: ST | G75: J | H75: 66.12 | I75: 0
A76: Alternative | C76: KLLVD125C | D76: KL Lufttechnik Vision Designgitter Cube | E76: DN125 ABL-G f. Decke, ZUL/ABL-G f. Wand | F76: ST | G76: J | H76: 66.12 | I76: 0
B77: =ROUNDUP(Deckblatt!U44/10,-0.1) -> 0 | C77: KLLZVFI100 | D77: =VLOOKUP($C77,db_Artikel,3) -> KL Lufttechnik Ventilfilter G2 (10 | E77: =VLOOKUP($C77,db_Artikel,4) -> Stück) 100x150mm für Abluftventil DN100 | F77: =VLOOKUP($C77,db_Artikel,5) -> PK | G77: =VLOOKUP($C77,db_Artikel,6) -> J | H77: =VLOOKUP($C77,db_Artikel,7) -> 20.14 | I77: 0
B78: =ROUNDUP(Deckblatt!U45/10,-0.1) -> 0 | C78: KLLZVFI125 | D78: =VLOOKUP($C78,db_Artikel,3) -> KL Lufttechnik Ventilfilter G2 (10 | E78: =VLOOKUP($C78,db_Artikel,4) -> Stück) 125x150mm für Abluftventil DN125 | F78: =VLOOKUP($C78,db_Artikel,5) -> PK | G78: =VLOOKUP($C78,db_Artikel,6) -> J | H78: =VLOOKUP($C78,db_Artikel,7) -> 20.14 | I78: 0
B79: =B75 -> 0 | C79: KLLFIH100 | D79: =VLOOKUP($C79,db_Artikel,3) -> KL Lufttechnik Filterhalterung DN100 für | E79: =VLOOKUP($C79,db_Artikel,4) -> Ventilfilter in Komb. m. Vision Designg. | F79: =VLOOKUP($C79,db_Artikel,5) -> ST | G79: =VLOOKUP($C79,db_Artikel,6) -> N | H79: =VLOOKUP($C79,db_Artikel,7) -> 14.32 | I79: 0
B80: =B76 -> 0 | C80: KLLFIH125 | D80: =VLOOKUP($C80,db_Artikel,3) -> KL Lufttechnik Filterhalterung DN125 für | E80: =VLOOKUP($C80,db_Artikel,4) -> Ventilfilter in Komb. m. Vision Designg. | F80: =VLOOKUP($C80,db_Artikel,5) -> ST | G80: =VLOOKUP($C80,db_Artikel,6) -> N | H80: =VLOOKUP($C80,db_Artikel,7) -> 17.23 | I80: 0
D82: Systemkomponenten Aussen- und Fortluft
B83: 2 | C83: KLLZIRO125 | D83: =VLOOKUP($C83,db_Artikel,3) -> KL Lufttechnik Isoliertes Lüftungsrohr | E83: =VLOOKUP($C83,db_Artikel,4) -> DN125, Länge 1m, 15mm Wandst. inkl Muffe | F83: =VLOOKUP($C83,db_Artikel,5) -> ST | G83: =VLOOKUP($C83,db_Artikel,6) -> J | H83: =VLOOKUP($C83,db_Artikel,7) -> 31.76 | I83: =IFERROR(B83*H83,"") -> 63.52
B84: 2 | C84: KLLZIBO125 | D84: KL Lufttechnik Isolierter Bogen 90 Grad | E84: DN125, 15mm Wandstärke inkl. Muffe | F84: ST | G84: J | H84: 27.82 | I84: 55.64
A85: Option | C85: KLLZIVB125 | D85: KL Lufttechnik Verbinder (Muffe) für | E85: ISO-Rohrsystem DN125, 15mm Wandstärke | F85: ST | G85: J | H85: 9.02 | I85: 0
B86: 2 | C86: KLLZISCHE | D86: KL Lufttechnik Befestigungsschelle für | E86: ISO-Rohrsystem DN125 und DN160 | F86: ST | G86: J | H86: 10.28 | I86: 20.56
B87: =IF(OR(B88>0,B89>0,B90>0,B91>0),"",1) -> 1 | C87: =IF(Deckblatt!R33=0,K88,IF(Deckblatt!R33=1,K89,IF(Deckblatt!R33=2,K88,IF(Deckblatt!R33=3,K89, IF(Deckblatt!R33=4,K88,IF(Deckblatt!R33=5,K89,)))))) -> KLLFLA125RAF | D87: KL Lufttechnik AUL-FOL Fassadenanschl. | E87: DN125 AUL rechts | F87: ST | G87: J | H87: 213.62 | I87: 213.62
A88: Alternative | C88: KLLFLA125A | D88: =VLOOKUP($C88,db_Artikel,3) -> KL Lufttechnik AUL-Fassadenanschluss | E88: =VLOOKUP($C88,db_Artikel,4) -> DN125 für ISO-Rohrsystem 125/155 | F88: =VLOOKUP($C88,db_Artikel,5) -> ST | G88: J | H88: =VLOOKUP($C88,db_Artikel,7) -> 137.33 | I88: 0 | K88: KLLFLA125RAF
A89: Alternative | C89: KLLFLA125F | D89: =VLOOKUP($C89,db_Artikel,3) -> KL Lufttechnik FOL-Fassadenanschluss | E89: =VLOOKUP($C89,db_Artikel,4) -> DN125 für ISO-Rohrsystem 125/155 | F89: =VLOOKUP($C89,db_Artikel,5) -> ST | G89: J | H89: =VLOOKUP($C89,db_Artikel,7) -> 188.6 | I89: 0 | K89: KLLFLA125LAF
A90: Alternative | C90: KLLFLA125AF | D90: =VLOOKUP($C90,db_Artikel,3) -> KL Lufttechnik AUL/FOL-Fassadenanschluss | E90: =VLOOKUP($C90,db_Artikel,4) -> DN125 für ISO-Rohrsystem 125/155 | F90: =VLOOKUP($C90,db_Artikel,5) -> ST | G90: N | H90: =VLOOKUP($C90,db_Artikel,7) -> 34.88 | I90: 0
A91: Alternative | C91: KLLZDAHAU125 | D91: KL Lufttechnik Dachhaube DN125 | E91: ohne Dachpfanne | F91: ST | G91: N | H91: 187.57 | I91: 0
A92: Alternative | C92: KLLZDAPF125 | D92: KL Lufttechnik Dachpfanne DN125 | E92: für 25-45 Grad Dachneigung | F92: ST | G92: N | H92: 162.86 | I92: 0
D94: Inbetriebnahme und Anlageneinregulierung
B95: 1 | C95: HOIBNKLWRL | D95: =VLOOKUP($C95,db_Artikel,3) -> Inbetriebnahme und Anlageneinregulierung | E95: =VLOOKUP($C95,db_Artikel,4) ->  | F95: =VLOOKUP($C95,db_Artikel,5) -> PA | G95: =VLOOKUP($C95,db_Artikel,6) -> J | H95: =VLOOKUP($C95,db_Artikel,7) -> 385 | I95: =IFERROR(B95*H95,"") -> 385
D97: Planung
A98: Option | C98: PLANMODUL2/1 | D98: =VLOOKUP($C98,db_Artikel,3) -> Planung einer Komfortlüftungsanlage inkl. 2D- | E98: =VLOOKUP($C98,db_Artikel,4) -> Plänen, Luftmengen u. Massenauszug | F98: =VLOOKUP($C98,db_Artikel,5) -> PA | G98: =VLOOKUP($C98,db_Artikel,6) -> J | H98: =VLOOKUP($C98,db_Artikel,7) -> 175 | I98: =IFERROR(B98*H98,"") -> 0
A100: BRUTTOLISTENPREIS in Euro exkl. MwSt. | H100: € | I100: =SUM(I8:I99) -> 3454.04
A102: gültig bis 31.12.2025. KL-Lufttechnik übernimmt keine Gewähr für zukünftige Preisänderungen.
A104: ANNAHMEN: | B104: pro Zu- bzw. Abluftleitung wurde eine Länge von 12 m angenommen
B105: für die Verteileranbindung wurden 2 Schalldämpfer mit einer Länge von je 1m angenommen
B106: für die Aussen- bzw. Fortluftleitung wurde insgesamt eine Leitungslänge von 2m inkl. Befestigung bzw. 2 Bögen angenommen
B107: für die Aussenluftansaugung bzw. für die Fortluftausblasung wurde ein kombiniertes Wandgitter einkalkuliert
A109: ACHTUNG: | B109: Der vorliegende Kalkulationsvorschlag ist lediglich ein Kostenvoranschlag.
B110: Sofern nicht anders angegeben, wird bei dem Kalkulationsvorschlag von einer üblichen Raumbelegung (Schlafzimmer 2 Pers,; Kind/
B111: Gast/Büro je 1 Pers.; (Wohn-/Esszimmer im Mittel 3-4 Pers.) ausgegangen.
B112: Die Berechnung basiert auf der Grundlage der Ö Norm H 6038:2014
B113: Etwaige zusätzliche Formteile (T-Stücke, Reduktionen…) sind nicht im Angebot enthalten
A115: HAFTUNGSAUSSCHLUSS:
B116: Die zur Verfügung gestellten Berechnungsergebnisse und Unterlagen sind vom ausführenden Installateur vor der Verwendung im Geschäftsbereich
B117: eigenverantwortlich auf Vollständigkeit und Richtigkeit zu prüfen. Für die Richtigkeit und Vollständigkeit der Berechnungsergebnisse und/oder
B118: eventuelle Folgeschäden und Kosten, die aufgrund fehlerhafter Berechnung entstanden sind und/oder entstehen können, übernimmt die Firma KL-Luft-
B119: technik keine Haftung. Auch die Haftung für Erfüllungsgehilfen wird ausgeschlossen. Der Haftungsausschluss gilt für vertragliche und deliktische Ansprüche
B120: Ausgenommen davon bleibt die Haftung wegen Vorsatz und grober Fahrlässigkeit.

Sheet KL350 (hidden)
A1: Projekt Nr.: | B1: =Deckblatt!C5 -> 1 | D1: MATERIALAUFSTELLUNG FRISCHLUFTGERÄT KL350 INKL. VOC-FEUCHTESENSOR UND VORHEIZREGISTER | F1: Datum: | I1: =TODAY() -> 2025-01-27
A2: Kunde: | B2: =Deckblatt!C6 -> Mustermann | F2: Verkäufer: | I2: =Deckblatt!L6 -> Mustermann
A4: Option/ | B4: Stück | C4: Artikelnummer | D4: Bezeichung 1 | E4: Bezeichnung 2 | F4: EH | G4: L | H4: Euro/EH | I4: Euro/Summe
A5: Alternative | I5: =I96 -> 4531.91
D7: Frischluftgerät KL350
B8: =IF(B9=1,"",1) -> 1 | C8: =IF(Deckblatt!R33=0,K8,IF(Deckblatt!R33=1,K12,IF(Deckblatt!R33=2,K10, IF(Deckblatt!R33=3,K14, IF(Deckblatt!R33=4,K10,IF(Deckblatt!R33=5,K14,)))))) -> KLL350RV | D8: =VLOOKUP($C8,db_Artikel,3) -> KL Lufttechnik Lüftungsgerät KL350 ZUL | E8: =VLOOKUP($C8,db_Artikel,4) -> rechts mit VHR (Wand) | F8: =VLOOKUP($C8,db_Artikel,5) -> ST | G8: =VLOOKUP($C8,db_Artikel,6) -> N | H8: =VLOOKUP($C8,db_Artikel,7) -> 3210.22 | I8: =IFERROR(B8*H8,"") -> 3210.22 | K8: KLL350RV
A9: Alternativ | C9: =IF(AND(C8="KLL350RV"),K9,IF(AND(C8="KLL350RVE"),K11,IF(AND(C8="KLL350LV"),K13,IF(AND(C8="KLL350LVE"),K15)))) -> KLL350RVB | D9: =VLOOKUP($C9,db_Artikel,3) -> KL Lufttechnik Lüftungsgerät KL350 ZUL | E9: =VLOOKUP($C9,db_Artikel,4) -> rechts mit VHR mit Bypass (Wand) | F9: =VLOOKUP($C9,db_Artikel,5) -> ST | G9: =VLOOKUP($C9,db_Artikel,6) -> J | H9: =VLOOKUP($C9,db_Artikel,7) -> 3477.09 | I9: =IFERROR(B9*H9,"") -> 0 | K9: KLL350RVB
K10: KLL350RVE
D11: Regelungskomponenten KL350 | K11: KLL350RVBE
A12: Option | C12: KLLBTM | D12: =VLOOKUP($C12,db_Artikel,3) -> KL Lufttechnik Bedienteil Mini | E12: =VLOOKUP($C12,db_Artikel,4) -> kabelgebunden | F12: =VLOOKUP($C12,db_Artikel,5) -> ST | G12: =VLOOKUP($C12,db_Artikel,6) -> J | H12: =VLOOKUP($C12,db_Artikel,7) -> 97.05 | I12: =IFERROR(B12*H12,"") -> 0 | K12: KLL350LV
A13: Option | C13: KLLBTS | D13: KL Lufttechnik Bedienteil Smart | E13: =VLOOKUP($C13,db_Artikel,4) -> kabelgebunden | F13: ST | G13: J | H13: 394 | I13: =IFERROR(B13*H13,"") -> 0 | K13: KLL350LVB
A14: Option | C14: KLLBTAPRA | D14: KL Lufttechnik Aufputzrahmen für Bedien- | E14: =VLOOKUP($C14,db_Artikel,4) -> teil MINI und SMART | F14: ST | G14: N | H14: 30.52 | I14: =IFERROR(B14*H14,"") -> 0 | K14: KLL350LVE
A15: Option | C15: KLLAUF | D15: KL Lufttechnik Außentemperaturfühler | F15: ST | G15: N | H15: 21.18 | I15: =IFERROR(B15*H15,"") -> 0 | K15: KLL350LVBE
D17: Zubehör KL350
B18: =IF(Deckblatt!R33=0,1,IF(Deckblatt!R33=1,1,IF(Deckblatt!R33=2,1,IF(Deckblatt!R33=3,1,IF(Deckblatt!R33=4,"",IF(Deckblatt!R33=5,"")))))) -> 1 | C18: KLLZSIFON | D18: =VLOOKUP($C18,db_Artikel,3) -> KL Lufttechnik Sifon mit Geruchssperre | E18: =VLOOKUP($C18,db_Artikel,4) -> für KL170XV/KL170S/KL170 und KL350/500 | F18: =VLOOKUP($C18,db_Artikel,5) -> ST | G18: =VLOOKUP($C18,db_Artikel,6) -> J | H18: =VLOOKUP($C18,db_Artikel,7) -> 58.85 | I18: =IFERROR(B18*H18,"") -> 58.85
A19: Option | C19: KLL350500MOF | D19: =VLOOKUP($C19,db_Artikel,3) -> KL Lufttechnik Montagefüße f.KL350/KL500 | E19: =VLOOKUP($C19,db_Artikel,4) -> f.freistehende Mont.(2 Stk) | F19: =VLOOKUP($C19,db_Artikel,5) -> SE | G19: =VLOOKUP($C19,db_Artikel,6) -> N | H19: =VLOOKUP($C19,db_Artikel,7) -> 135.15 | I19: 0
B20: =IF(AND(B8=1,OR(Deckblatt!R33=4,Deckblatt!R33=5)),"1","") ->  | C20: KLL350500MOBD | D20: KL Lufttechnik Montagebügel Decke | E20: für KL350/KL500 ohne Bypass | F20: SE | G20: J | H20: 78.89
B21: =IF(AND(B9=1,OR(Deckblatt!R33=4,Deckblatt!R33=5)),"1","") ->  | C21: KLL350500MOBDB | D21: KL Lufttechnik Montagebügel Decke | E21: für KL350/KL500 mit Bypass | F21: SE | G21: J | H21: 83.87
A22: Option | C22: KLL350500FSET | D22: KL Lufttechnik 1x ZUL Filter F7 440x | E22: 300x47mm, 1x ABL Filter G4 440x280x47mm | F22: SE | G22: J | H22: 59.58 | I22: 0
A23: Option | C23: KLL350500FSETF9 | D23: KL Lufttechnik 1x ZUL Filter F9 440x | E23: 300x47mm, 1x ABL Filter G4 440x280x47mm | F23: SE | G23: N | H23: 101.83 | I23: 0
D25: Verteiltechnik Zu- und Abluft Anbindung
B26: 2 | C26: KLLZSDS16012MN | D26: =VLOOKUP($C26,db_Artikel,3) -> KL Lufttechnik Flexibler Schalldämpfer | E26: =VLOOKUP($C26,db_Artikel,4) -> DN160, 1,2m, 48dB bei 250Hz, 50mm | F26: =VLOOKUP($C26,db_Artikel,5) -> ST | G26: =VLOOKUP($C26,db_Artikel,6) -> N | H26: =VLOOKUP($C26,db_Artikel,7) -> 85.53 | I26: =IFERROR(B26*H26,"") -> 171.06
D28: Verteiltechnik Schalldämmverteiler
B29: =dB_AnzSDV -> 0 | C29: KLLSDVEPP | D29: =VLOOKUP($C29,db_Artikel,3) -> KL Lufttechnik Schalldämmverteiler | E29: =VLOOKUP($C29,db_Artikel,4) -> 3x125/160mm Eing./28x75mm Ausg. | F29: =VLOOKUP($C29,db_Artikel,5) -> ST | G29: =VLOOKUP($C29,db_Artikel,6) -> J | H29: =VLOOKUP($C29,db_Artikel,7) -> 569.86 | I29: =IFERROR(B29*H29,"") -> 0
B30: =IF(B36=0,IF(db_AnzMaxAbg>14, 2, IF(db_AnzMaxAbg>8,1,"")),"") ->  | C30: KLLSDVEPPMOB | D30: =VLOOKUP($C30,db_Artikel,3) -> KL Lufttechnik Montagebügel Decke | E30: =VLOOKUP($C30,db_Artikel,4) -> für Schalldämmverteiler SDVEPP | F30: =VLOOKUP($C30,db_Artikel,5) -> ST | G30: =VLOOKUP($C30,db_Artikel,6) -> J | H30: =VLOOKUP($C30,db_Artikel,7) -> 69 | I30: =IFERROR(B30*H30,"") -> 
B31: =IF(B36=0,dB_AnzBog,"") -> 0 | C31: PKB75/87 | D31: =VLOOKUP($C31,db_Artikel,3) -> Poloplast Polokal NG Bogen PKB2134 | E31: =VLOOKUP($C31,db_Artikel,4) -> 87,5 Grad DN75 | F31: =VLOOKUP($C31,db_Artikel,5) -> ST | G31: =VLOOKUP($C31,db_Artikel,6) -> J | H31: =VLOOKUP($C31,db_Artikel,7) -> 11.18 | I31: =IFERROR(B31*H31,"") -> 0
D32: =db_AnzAbgZUL -> 0 | E32: aktive Zuluftanschlüsse
D33: =db_AnzAbgABL -> 0 | E33: aktive Abluftanschlüsse
D35: Anschlussplatte (max.16 Abgänge)
A36: Option | C36: KLLZSDVASPL/EPP | D36: =VLOOKUP($C36,db_Artikel,3) -> KL Lufttechnik Anschlussplatte für | E36: =VLOOKUP($C36,db_Artikel,4) -> Schalldämmverteiler EPP | F36: =VLOOKUP($C36,db_Artikel,5) -> ST | G36: =VLOOKUP($C36,db_Artikel,6) -> J | H36: =VLOOKUP($C36,db_Artikel,7) -> 109 | I36: =IFERROR(B36*H36,"") -> 0
A37: Option | C37: KLLZSDVASPL/EW | D37: =VLOOKUP($C37,db_Artikel,3) -> KL Lufttechnik Anschlussplattenerweiterung | E37: =VLOOKUP($C37,db_Artikel,4) -> zu EPP-Verteiler (2 Stück) | F37: =VLOOKUP($C37,db_Artikel,5) -> ST | G37: =VLOOKUP($C37,db_Artikel,6) -> J | H37: =VLOOKUP($C37,db_Artikel,7) -> 88 | I37: =IFERROR(B37*H37,"") -> 0
A38: Option | B38: =IF(B36>0, B36,"") ->  | C38: KLLZKUNI75EPP | D38: =VLOOKUP($C38,db_Artikel,3) -> KL Lufttechnik Verbindungsset SDV | E38: =VLOOKUP($C38,db_Artikel,4) -> und Anschlussplatte | F38: =VLOOKUP($C38,db_Artikel,5) -> ST | G38: =VLOOKUP($C38,db_Artikel,6) -> J | H38: =VLOOKUP($C38,db_Artikel,7) -> 51 | I38: =IFERROR(B38*H38,"") -> 
A39: Option | C39: KLLZHASAP6 | D39: =VLOOKUP($C39,db_Artikel,3) -> KL Lufttechnik Schlauchhalterung | E39: =VLOOKUP($C39,db_Artikel,4) -> zu Anschlussplatte SDV, beidseitig (1PK=2STK) | F39: =VLOOKUP($C39,db_Artikel,5) -> PK | G39: =VLOOKUP($C39,db_Artikel,6) -> J | H39: =VLOOKUP($C39,db_Artikel,7) -> 56.67 | I39: =IFERROR(B39*H39,"") -> 0
A40: Option | C40: KLLZHASAP12 | D40: =VLOOKUP($C40,db_Artikel,3) -> KL Lufttechnik Schlauchhalterung | E40: =VLOOKUP($C40,db_Artikel,4) -> zu Anschlussplatte SDV, einseitig | F40: =VLOOKUP($C40,db_Artikel,5) -> ST | G40: =VLOOKUP($C40,db_Artikel,6) -> N | H40: =VLOOKUP($C40,db_Artikel,7) -> 56.67 | I40: =IFERROR(B40*H40,"") -> 0
D42: Verteiltechnik Sternverteiler
B43: =IF(db_Verteiler=1,dB_AnzSTV_ZUL+dB_AnzSTV_ABL,"") ->  | C43: =IF(Deckblatt!R37=1,K43,"") ->  | D43: =VLOOKUP($C43,db_Artikel,3) ->  | E43: =VLOOKUP($C43,db_Artikel,4) ->  | F43: =VLOOKUP($C43,db_Artikel,5) ->  | G43: =VLOOKUP($C43,db_Artikel,6) ->  | H43: =VLOOKUP($C43,db_Artikel,7) ->  | I43: =IFERROR(B43*H43,"") ->  | K43: KLLV125756
B44: =IF(db_Verteiler=1,dB_AnzSTV_ZUL+dB_AnzSTV_ABL,"") ->  | C44: =IF(Deckblatt!R37=1,K44,"") ->  | D44: =VLOOKUP($C44,db_Artikel,3) ->  | E44: =VLOOKUP($C44,db_Artikel,4) ->  | F44: =VLOOKUP($C44,db_Artikel,5) ->  | G44: =VLOOKUP($C44,db_Artikel,6) ->  | H44: =VLOOKUP($C44,db_Artikel,7) ->  | I44: =IFERROR(B44*H44,"") ->  | K44: KLLZSNFL125
A45: Option | C45: KLLFSD752 | D45: =VLOOKUP($C45,db_Artikel,3) -> KL Lufttechnik Flachschalldämpfer 2xDN75 | E45: =VLOOKUP($C45,db_Artikel,4) -> Länge 500mm, 10dB bei 250Hz | F45: =VLOOKUP($C45,db_Artikel,5) -> ST | G45: =VLOOKUP($C45,db_Artikel,6) -> N | H45: =VLOOKUP($C45,db_Artikel,7) -> 162.44 | I45: =IFERROR(B45*H45,"") -> 0
D47: Verteiltechnik Zu- und Abluft Allgemein
B48: =ROUNDUP(dB_SchlauchLen/5,-1)*5 -> 0 | C48: KLLZSCHL75 | D48: =VLOOKUP($C48,db_Artikel,3) -> KL Lufttechnik Kunststoffschlauch DN75, | E48: =VLOOKUP($C48,db_Artikel,4) -> PE AD:75mm, ID:63mm | F48: =VLOOKUP($C48,db_Artikel,5) -> MT | G48: =VLOOKUP($C48,db_Artikel,6) -> J | H48: =VLOOKUP($C48,db_Artikel,7) -> 4.18 | I48: =IFERROR(B48*H48,"") -> 0
B49: =ROUNDDOWN(B48/51,0) -> 0 | C49: KLLZVEM75 | D49: KL Lufttechnik Verbindungsmuffe | E49: für Kunststoffschlauch DN75 | F49: ST | G49: J | H49: 5.19 | I49: 0
B50: =Deckblatt!U40 -> 0 | C50: KLLZSN10075 | D50: KL Lufttechnik Saugnische DN100 | E50: 1x DN75 max. 30m3/h, PE | F50: ST | G50: J | H50: 13.91 | I50: 0
B51: =Deckblatt!U40 -> 0 | C51: KLLZSNFL100 | D51: KL Lufttechnik Montageflansch DN100 | E51: für Saugnische DN100, PE | F51: ST | G51: J | H51: 6.44 | I51: 0
A52: Option | C52: KLLZSNVL100 | D52: KL Lufttechnik Verlängerung | E52: für Saugnische DN100 | F52: ST | G52: J | H52: 5.81 | I52: 0
B53: =Deckblatt!U41 -> 0 | C53: KLLZSN125752 | D53: KL Lufttechnik Saugnische DN125 | E53: 2x DN75 max. 60m3/h, PE | F53: ST | G53: J | H53: 25.64 | I53: 0
B54: =Deckblatt!U41 -> 0 | C54: KLLZSNFL125 | D54: KL Lufttechnik Montageflansch DN125 | E54: für Saugnische DN125, PE | F54: ST | G54: J | H54: 8.51 | I54: 0
A55: Option | C55: KLLZSNVL125 | D55: KL Lufttechnik Verlängerung f. Saugn.125 | E55: und Verteiler KLLV125756 | F55: ST | G55: J | H55: 7.27 | I55: 0
B56: =SUM(B64:B67)+SUM(B73:B74) -> 0 | C56: KLLZSDLR63 | D56: KL Lufttechnik Schalldämm-Luftregulier- | E56: einlage f.Saugn. DN100/125 u. Verteiler | F56: ST | G56: J | H56: 8.72 | I56: 0
D58: Sichtteile
B59: =Deckblatt!U42-B61-B64-B66 -> 0 | C59: KLLZZULV100 | D59: =VLOOKUP($C59,db_Artikel,3) -> KL Lufttechnik Zuluftventil DN100 rund | E59: =VLOOKUP($C59,db_Artikel,4) -> aus Stahlb. m. Einbaurahmen weiß lack. | F59: =VLOOKUP($C59,db_Artikel,5) -> ST | G59: =VLOOKUP($C59,db_Artikel,6) -> J | H59: =VLOOKUP($C59,db_Artikel,7) -> 5.61 | I59: =IFERROR(B59*H59,"") -> 0
B60: =Deckblatt!U43-B62-B63-B65-B67 -> 0 | C60: KLLZZULV125 | D60: KL Lufttechnik Zuluftventil DN125 rund | E60: aus Stahlb. m. Einbaurahmen weiß lack. | F60: ST | G60: J | H60: 6.95 | I60: 0
A61: Alternative | C61: KLLZULVW100 | D61: KL Lufttechnik Zuluftventil DN100 Wandm. | E61: aus Stahlb. m. Einbaurahmen weiß lack. | F61: ST | G61: J | H61: 39.24 | I61: 0
A62: Alternative | C62: KLLZULVW125 | D62: KL Lufttechnik Zuluftventil DN125 Wandm. | E62: aus Stahlb. m. Einbaurahmen weiß lack. | F62: ST | G62: J | H62: 46.09 | I62: 0
A63: Alternative | C63: KLLBOA801 | D63: KL Lufttechnik Vision Designauslass Floor | E63: DN125 ZUL-A f. Boden, Saugn.u.Reguliere. | F63: ST | G63: J | H63: 286.49 | I63: 0
A64: Alternative | C64: KLLVD100C | D64: KL Lufttechnik Vision Designgitter Cube | E64: DN100 ABL-G f. Decke, ZUL/ABL-G f. Wand | F64: ST | G64: J | H64: 66.12 | I64: 0
A65: Alternative | C65: KLLVD125C | D65: KL Lufttechnik Vision Designgitter Cube | E65: DN125 ABL-G f. Decke, ZUL/ABL-G f. Wand | F65: ST | G65: J | H65: 66.12 | I65: 0
A66: Altern. DN100 | C66: KLLVD100125P | D66: KL Lufttechnik Vision Designgitter Plane | E66: DN100/125 ZUL-G für Decke | F66: ST | G66: J | H66: 66.12 | I66: 0
A67: Altern. DN125 | C67: KLLVD100125P | D67: KL Lufttechnik Vision Designgitter Plane | E67: DN100/125 ZUL-G für Decke | F67: ST | G67: J | H67: 66.12 | I67: 0
B68: =Deckblatt!U44-B71-B73 -> 0 | C68: KLLZABLV100 | D68: KL Lufttechnik Abluftventil DN100 rund | E68: aus Stahlb. m. Einbaurahmen weiß lack. | F68: ST | G68: J | H68: 5.61 | I68: 0
B69: =Deckblatt!U45-B72-B74 -> 0 | C69: KLLZABLV125 | D69: KL Lufttechnik Abluftventil DN125 rund | E69: aus Stahlb. m. Einbaurahmen weiß lack. | F69: ST | G69: J | H69: 6.95 | I69: 0
A70: Alternative | C70: KLLZABLV080 | D70: =VLOOKUP($C70,db_Artikel,3) -> KL Lufttechnik Abluftventil DN80 | E70: =VLOOKUP($C70,db_Artikel,4) -> Kunststoff weiß | F70: =VLOOKUP($C70,db_Artikel,5) -> ST | G70: =VLOOKUP($C70,db_Artikel,6) -> J | H70: =VLOOKUP($C70,db_Artikel,7) -> 12.04 | I70: 0
A71: Alternative | C71: KLLZABLV100F | D71: KL Lufttechnik Abluftventil DN100 quad. | E71: m.Filter aus Stahlbl. weiß lackiert | F71: ST | G71: N | H71: 60.1 | I71: 0
A72: Alternative | C72: KLLZABLV125F | D72: KL Lufttechnik Abluftventil DN125 quad. | E72: m.Filter aus Stahlbl. weiß lackiert | F72: ST | G72: N | H72: 76.4 | I72: 0
A73: Alternative | C73: KLLVD100C | D73: KL Lufttechnik Vision Designgitter Cube | E73: DN100 ABL-G f. Decke, ZUL/ABL-G f. Wand | F73: ST | G73: J | H73: 66.12 | I73: 0
A74: Alternative | C74: KLLVD125C | D74: KL Lufttechnik Vision Designgitter Cube | E74: DN125 ABL-G f. Decke, ZUL/ABL-G f. Wand | F74: ST | G74: J | H74: 66.12 | I74: 0
B75: =ROUNDUP(Deckblatt!U44/10,-0.1) -> 0 | C75: KLLZVFI100 | D75: =VLOOKUP($C75,db_Artikel,3) -> KL Lufttechnik Ventilfilter G2 (10 | E75: =VLOOKUP($C75,db_Artikel,4) -> Stück) 100x150mm für Abluftventil DN100 | F75: =VLOOKUP($C75,db_Artikel,5) -> PK | G75: =VLOOKUP($C75,db_Artikel,6) -> J | H75: =VLOOKUP($C75,db_Artikel,7) -> 20.14 | I75: 0
B76: =ROUNDUP(Deckblatt!U45/10,-0.1) -> 0 | C76: KLLZVFI125 | D76: =VLOOKUP($C76,db_Artikel,3) -> KL Lufttechnik Ventilfilter G2 (10 | E76: =VLOOKUP($C76,db_Artikel,4) -> Stück) 125x150mm für Abluftventil DN125 | F76: =VLOOKUP($C76,db_Artikel,5) -> PK | G76: =VLOOKUP($C76,db_Artikel,6) -> J | H76: =VLOOKUP($C76,db_Artikel,7) -> 20.14 | I76: 0
B77: =B73 -> 0 | C77: KLLFIH100 | D77: =VLOOKUP($C77,db_Artikel,3) -> KL Lufttechnik Filterhalterung DN100 für | E77: =VLOOKUP($C77,db_Artikel,4) -> Ventilfilter in Komb. m. Vision Designg. | F77: =VLOOKUP($C77,db_Artikel,5) -> ST | G77: =VLOOKUP($C77,db_Artikel,6) -> N | H77: =VLOOKUP($C77,db_Artikel,7) -> 14.32 | I77: 0
B78: =B74 -> 0 | C78: KLLFIH125 | D78: =VLOOKUP($C78,db_Artikel,3) -> KL Lufttechnik Filterhalterung DN125 für | E78: =VLOOKUP($C78,db_Artikel,4) -> Ventilfilter in Komb. m. Vision Designg. | F78: =VLOOKUP($C78,db_Artikel,5) -> ST | G78: =VLOOKUP($C78,db_Artikel,6) -> N | H78: =VLOOKUP($C78,db_Artikel,7) -> 17.23 | I78: 0
D80: Systemkomponenten Aussen- und Fortluft
B81: 4 | C81: KLLZIRO16015 | D81: =VLOOKUP($C81,db_Artikel,3) -> KL Lufttechnik Isoliertes Lüftungsrohr | E81: =VLOOKUP($C81,db_Artikel,4) -> DN160, Länge 1m, 15mm Wandst. inkl Muffe | F81: =VLOOKUP($C81,db_Artikel,5) -> ST | G81: =VLOOKUP($C81,db_Artikel,6) -> J | H81: =VLOOKUP($C81,db_Artikel,7) -> 42.35 | I81: =IFERROR(B81*H81,"") -> 169.4
B82: 4 | C82: KLLZIBO16015 | D82: KL Lufttechnik Isolierter Bogen 90 Grad | E82: DN160, 15mm Wandstärke inkl. Muffe | F82: ST | G82: J | H82: 31.14 | I82: 124.56
A83: Option | C83: KLLZIVB16015 | D83: KL Lufttechnik Verbinder (Muffe) für | E83: ISO-Rohrsystem DN160, 15mm Wandstärke | F83: ST | G83: J | H83: 9.44 | I83: 0
B84: 4 | C84: KLLZISCHE | D84: KL Lufttechnik Befestigungsschelle für | E84: ISO-Rohrsystem DN125 und DN160 | F84: ST | G84: J | H84: 10.28 | I84: 41.12
B85: 1 | C85: KLLFLA160A | D85: KL Lufttechnik AUL-Fassadenanschluss | E85: DN160 für ISO-Rohrsystem 160/190 | F85: ST | G85: J | H85: 165.66 | I85: 165.66
B86: 1 | C86: KLLFLA160F | D86: KL Lufttechnik FOL-Fassadenanschluss | E86: DN160 für ISO-Rohrsystem 160/190 | F86: ST | G86: J | H86: 206.04 | I86: 206.04
A87: Alternative | C87: KLLZDAHAU160 | D87: KL Lufttechnik Dachhaube DN160 | E87: ohne Dachpfanne | F87: ST | G87: N | H87: 196.29 | I87: 0
A88: Alternative | C88: KLLZDAPF160 | D88: KL Lufttechnik Dachpfanne DN160 | E88: für 25-45 Grad Dachneigung | F88: ST | G88: N | H88: 167.95 | I88: 0
D90: Inbetriebnahme und Anlageneinregulierung
B91: 1 | C91: HOIBNKLWRL | D91: =VLOOKUP($C91,db_Artikel,3) -> Inbetriebnahme und Anlageneinregulierung | F91: =VLOOKUP($C91,db_Artikel,5) -> PA | G91: =VLOOKUP($C91,db_Artikel,6) -> J | H91: =VLOOKUP($C91,db_Artikel,7) -> 385 | I91: =IFERROR(B91*H91,"") -> 385
D93: Planung
A94: Option | C94: PLANMODUL2/2 | D94: =VLOOKUP($C94,db_Artikel,3) -> Planung einer Komfortlüftungsanlage inkl. 2D- | E94: Plänen, Luftmengen u. Massenauszug | F94: =VLOOKUP($C94,db_Artikel,5) -> PA | G94: =VLOOKUP($C94,db_Artikel,6) -> J | H94: =VLOOKUP($C94,db_Artikel,7) -> 220 | I94: =IFERROR(B94*H94,"") -> 0
A96: BRUTTOLISTENPREIS in Euro exkl. MwSt. | H96: € | I96: =SUM(I8:I95) -> 4531.91
A98: gültig bis 31.12.2025. KL-Lufttechnik übernimmt keine Gewähr für zukünftige Preisänderungen.
A100: ANNAHMEN: | B100: pro Zu- bzw. Abluftleitung wurde eine Länge von 12 m angenommen
B101: für die Verteileranbindung wurden 2 Schalldämpfer mit einer Länge von je 1,2m angenommen
B102: für die Aussen- bzw. Fortluftleitung wurde insgesamt eine Leitungslänge von 4m inkl. Befestigung bzw. 4 Bögen angenommen
B103: für die Aussenluftansaugung bzw. für die Fortluftausblasung wurde jeweils ein Wandgitter einkalkuliert
A105: ACHTUNG: | B105: Der vorliegende Kalkulationsvorschlag ist lediglich ein Kostenvoranschlag.
B106: Sofern nicht anders angegeben, wird bei dem Kalkulationsvorschlag von einer üblichen Raumbelegung (Schlafzimmer 2 Pers,; Kind/
B107: Gast/Büro je 1 Pers.; (Wohn-/Esszimmer im Mittel 3-4 Pers.) ausgegangen.
B108: Die Berechnung basiert auf der Grundlage der Ö Norm H 6038:2014
B109: Etwaige zusätzliche Formteile (T-Stücke, Reduktionen…) sind nicht im Angebot enthalten
A111: HAFTUNGSAUSSCHLUSS:
B112: Die zur Verfügung gestellten Berechnungsergebnisse und Unterlagen sind vom ausführenden Installateur vor der Verwendung im Geschäftsbereich
B113: eigenverantwortlich auf Vollständigkeit und Richtigkeit zu prüfen. Für die Richtigkeit und Vollständigkeit der Berechnungsergebnisse und/oder
B114: eventuelle Folgeschäden und Kosten, die aufgrund fehlerhafter Berechnung entstanden sind und/oder entstehen können, übernimmt die Firma KL-Luft-
B115: technik keine Haftung. Auch die Haftung für Erfüllungsgehilfen wird ausgeschlossen. Der Haftungsausschluss gilt für vertragliche und deliktische Ansprüche
B116: Ausgenommen davon bleibt die Haftung wegen Vorsatz und grober Fahrlässigkeit.

Sheet KL500 (hidden)
A1: Projekt Nr.: | B1: =Deckblatt!C5 -> 1 | D1: MATERIALAUFSTELLUNG FRISCHLUFTGERÄT KL500 INKL. VOC-FEUCHTESENSOR UND VORHEIZREGISTER | F1: Datum: | I1: =TODAY() -> 2025-01-27
A2: Kunde: | B2: =Deckblatt!C6 -> Mustermann | F2: Verkäufer: | I2: =Deckblatt!L6 -> Mustermann
A4: Option/ | B4: Stück | C4: Artikelnummer | D4: Bezeichung 1 | E4: Bezeichnung 2 | F4: EH | G4: L | H4: Euro/EH | I4: Euro/Summe
A5: Alternative | I5: =I96 -> 4531.91
D7: Frischluftgerät KL500
B8: =IF(B9=1,"",1) -> 1 | C8: =IF(Deckblatt!R33=0,K8,IF(Deckblatt!R33=1,K12,IF(Deckblatt!R33=2,K10, IF(Deckblatt!R33=3,K14, IF(Deckblatt!R33=4,K10,IF(Deckblatt!R33=5,K14,)))))) -> KLL500RV | D8: =VLOOKUP($C8,db_Artikel,3) -> KL Lufttechnik Lüftungsgerät KL500 ZUL | E8: =VLOOKUP($C8,db_Artikel,4) -> rechts mit VHR (Wand) | F8: =VLOOKUP($C8,db_Artikel,5) -> ST | G8: =VLOOKUP($C8,db_Artikel,6) -> J | H8: =VLOOKUP($C8,db_Artikel,7) -> 3210.22 | I8: =IFERROR(B8*H8,"") -> 3210.22 | K8: KLL500RV
A9: Alternativ | C9: =IF(AND(C8="KLL500RV"),K9,IF(AND(C8="KLL500RVE"),K11,IF(AND(C8="KLL500LV"),K13,IF(AND(C8="KLL500LVE"),K15)))) -> KLL500RVB | D9: =VLOOKUP($C9,db_Artikel,3) -> KL Lufttechnik Lüftungsgerät KL500 ZUL | E9: =VLOOKUP($C9,db_Artikel,4) -> rechts mit VHR und Bypass (Wand) | F9: =VLOOKUP($C9,db_Artikel,5) -> ST | G9: =VLOOKUP($C9,db_Artikel,6) -> N | H9: =VLOOKUP($C9,db_Artikel,7) -> 3477.09 | I9: =IFERROR(B9*H9,"") -> 0 | K9: KLL500RVB
K10: KLL500RVE
D11: Regelungskomponenten KL500 | K11: KLL500RVBE
A12: Option | C12: KLLBTM | D12: =VLOOKUP($C12,db_Artikel,3) -> KL Lufttechnik Bedienteil Mini | E12: =VLOOKUP($C12,db_Artikel,4) -> kabelgebunden | F12: =VLOOKUP($C12,db_Artikel,5) -> ST | G12: =VLOOKUP($C12,db_Artikel,6) -> J | H12: =VLOOKUP($C12,db_Artikel,7) -> 97.05 | I12: =IFERROR(B12*H12,"") -> 0 | K12: KLL500LV
A13: Option | C13: KLLBTS | D13: KL Lufttechnik Bedienteil Smart | E13: =VLOOKUP($C13,db_Artikel,4) -> kabelgebunden | F13: ST | G13: J | H13: 394 | I13: =IFERROR(B13*H13,"") -> 0 | K13: KLL500LVB
A14: Option | C14: KLLBTAPRA | D14: KL Lufttechnik Aufputzrahmen für Bedien- | E14: =VLOOKUP($C14,db_Artikel,4) -> teil MINI und SMART | F14: ST | G14: N | H14: 30.52 | I14: =IFERROR(B14*H14,"") -> 0 | K14: KLL500LVE
A15: Option | C15: KLLAUF | D15: KL Lufttechnik Außentemperaturfühler | F15: ST | G15: N | H15: 21.18 | I15: =IFERROR(B15*H15,"") -> 0 | K15: KLL500LVBE
D17: Zubehör KL500
B18: =IF(Deckblatt!R33=0,1,IF(Deckblatt!R33=1,1,IF(Deckblatt!R33=2,1,IF(Deckblatt!R33=3,1,IF(Deckblatt!R33=4,"",IF(Deckblatt!R33=5,"")))))) -> 1 | C18: KLLZSIFON | D18: =VLOOKUP($C18,db_Artikel,3) -> KL Lufttechnik Sifon mit Geruchssperre | E18: =VLOOKUP($C18,db_Artikel,4) -> für KL170XV/KL170S/KL170 und KL350/500 | F18: =VLOOKUP($C18,db_Artikel,5) -> ST | G18: =VLOOKUP($C18,db_Artikel,6) -> J | H18: =VLOOKUP($C18,db_Artikel,7) -> 58.85 | I18: =IFERROR(B18*H18,"") -> 58.85
A19: Option | C19: KLL350500MOF | D19: =VLOOKUP($C19,db_Artikel,3) -> KL Lufttechnik Montagefüße f.KL350/KL500 | E19: =VLOOKUP($C19,db_Artikel,4) -> f.freistehende Mont.(2 Stk) | F19: =VLOOKUP($C19,db_Artikel,5) -> SE | G19: =VLOOKUP($C19,db_Artikel,6) -> N | H19: =VLOOKUP($C19,db_Artikel,7) -> 135.15 | I19: 0
B20: =IF(AND(B8=1,OR(Deckblatt!R33=4,Deckblatt!R33=5)),"1","") ->  | C20: KLL350500MOBD | D20: KL Lufttechnik Montagebügel Decke | E20: für KL350/KL500 ohne Bypass | F20: SE | G20: J | H20: 78.89
B21: =IF(AND(B9=1,OR(Deckblatt!R33=4,Deckblatt!R33=5)),"1","") ->  | C21: KLL350500MOBDB | D21: KL Lufttechnik Montagebügel Decke | E21: für KL350/KL500 mit Bypass | F21: SE | G21: J | H21: 83.87
A22: Option | C22: KLL350500FSET | D22: KL Lufttechnik 1x ZUL Filter F7 440x | E22: 300x47mm, 1x ABL Filter G4 440x280x47mm | F22: SE | G22: J | H22: 59.58 | I22: 0
A23: Option | C23: KLL350500FSETF9 | D23: KL Lufttechnik 1x ZUL Filter F9 440x | E23: 300x47mm, 1x ABL Filter G4 440x280x47mm | F23: SE | G23: N | H23: 101.83 | I23: 0
D25: Verteiltechnik Zu- und Abluft Anbindung
B26: 2 | C26: KLLZSDS16012MN | D26: =VLOOKUP($C26,db_Artikel,3) -> KL Lufttechnik Flexibler Schalldämpfer | E26: =VLOOKUP($C26,db_Artikel,4) -> DN160, 1,2m, 48dB bei 250Hz, 50mm | F26: =VLOOKUP($C26,db_Artikel,5) -> ST | G26: =VLOOKUP($C26,db_Artikel,6) -> N | H26: =VLOOKUP($C26,db_Artikel,7) -> 85.53 | I26: =IFERROR(B26*H26,"") -> 171.06
D28: Verteiltechnik Schalldämmverteiler
B29: =dB_AnzSDV -> 0 | C29: KLLSDVEPP | D29: =VLOOKUP($C29,db_Artikel,3) -> KL Lufttechnik Schalldämmverteiler | E29: =VLOOKUP($C29,db_Artikel,4) -> 3x125/160mm Eing./28x75mm Ausg. | F29: =VLOOKUP($C29,db_Artikel,5) -> ST | G29: =VLOOKUP($C29,db_Artikel,6) -> J | H29: =VLOOKUP($C29,db_Artikel,7) -> 569.86 | I29: =IFERROR(B29*H29,"") -> 0
B30: =IF(B36=0,IF(db_AnzMaxAbg>14, 2, IF(db_AnzMaxAbg>8,1,"")),"") ->  | C30: KLLSDVEPPMOB | D30: =VLOOKUP($C30,db_Artikel,3) -> KL Lufttechnik Montagebügel Decke | E30: =VLOOKUP($C30,db_Artikel,4) -> für Schalldämmverteiler SDVEPP | F30: =VLOOKUP($C30,db_Artikel,5) -> ST | G30: =VLOOKUP($C30,db_Artikel,6) -> J | H30: =VLOOKUP($C30,db_Artikel,7) -> 69 | I30: =IFERROR(B30*H30,"") -> 
B31: =IF(B36=0,dB_AnzBog,"") -> 0 | C31: PKB75/87 | D31: =VLOOKUP($C31,db_Artikel,3) -> Poloplast Polokal NG Bogen PKB2134 | E31: =VLOOKUP($C31,db_Artikel,4) -> 87,5 Grad DN75 | F31: =VLOOKUP($C31,db_Artikel,5) -> ST | G31: =VLOOKUP($C31,db_Artikel,6) -> J | H31: =VLOOKUP($C31,db_Artikel,7) -> 11.18 | I31: =IFERROR(B31*H31,"") -> 0
D32: =db_AnzAbgZUL -> 0 | E32: aktive Zuluftanschlüsse
D33: =db_AnzAbgABL -> 0 | E33: aktive Abluftanschlüsse
D35: Anschlussplatte (max.16 Abgänge)
A36: Option | C36: KLLZSDVASPL/EPP | D36: =VLOOKUP($C36,db_Artikel,3) -> KL Lufttechnik Anschlussplatte für | E36: =VLOOKUP($C36,db_Artikel,4) -> Schalldämmverteiler EPP | F36: =VLOOKUP($C36,db_Artikel,5) -> ST | G36: =VLOOKUP($C36,db_Artikel,6) -> J | H36: =VLOOKUP($C36,db_Artikel,7) -> 109 | I36: =IFERROR(B36*H36,"") -> 0
A37: Option | C37: KLLZSDVASPL/EW | D37: =VLOOKUP($C37,db_Artikel,3) -> KL Lufttechnik Anschlussplattenerweiterung | E37: =VLOOKUP($C37,db_Artikel,4) -> zu EPP-Verteiler (2 Stück) | F37: =VLOOKUP($C37,db_Artikel,5) -> ST | G37: =VLOOKUP($C37,db_Artikel,6) -> J | H37: =VLOOKUP($C37,db_Artikel,7) -> 88 | I37: =IFERROR(B37*H37,"") -> 0
A38: Option | B38: =IF(B36>0, B36,"") ->  | C38: KLLZKUNI75EPP | D38: =VLOOKUP($C38,db_Artikel,3) -> KL Lufttechnik Verbindungsset SDV | E38: =VLOOKUP($C38,db_Artikel,4) -> und Anschlussplatte | F38: =VLOOKUP($C38,db_Artikel,5) -> ST | G38: =VLOOKUP($C38,db_Artikel,6) -> J | H38: =VLOOKUP($C38,db_Artikel,7) -> 51 | I38: =IFERROR(B38*H38,"") -> 
A39: Option | C39: KLLZHASAP6 | D39: =VLOOKUP($C39,db_Artikel,3) -> KL Lufttechnik Schlauchhalterung | E39: =VLOOKUP($C39,db_Artikel,4) -> zu Anschlussplatte SDV, beidseitig (1PK=2STK) | F39: =VLOOKUP($C39,db_Artikel,5) -> PK | G39: =VLOOKUP($C39,db_Artikel,6) -> J | H39: =VLOOKUP($C39,db_Artikel,7) -> 56.67 | I39: =IFERROR(B39*H39,"") -> 0
A40: Option | C40: KLLZHASAP12 | D40: =VLOOKUP($C40,db_Artikel,3) -> KL Lufttechnik Schlauchhalterung | E40: =VLOOKUP($C40,db_Artikel,4) -> zu Anschlussplatte SDV, einseitig | F40: =VLOOKUP($C40,db_Artikel,5) -> ST | G40: =VLOOKUP($C40,db_Artikel,6) -> N | H40: =VLOOKUP($C40,db_Artikel,7) -> 56.67 | I40: =IFERROR(B40*H40,"") -> 0
D42: Verteiltechnik Sternverteiler
B43: =IF(db_Verteiler=1,dB_AnzSTV_ZUL+dB_AnzSTV_ABL,"") ->  | C43: =IF(Deckblatt!R37=1,K43,"") ->  | D43: =VLOOKUP($C43,db_Artikel,3) ->  | E43: =VLOOKUP($C43,db_Artikel,4) ->  | F43: =VLOOKUP($C43,db_Artikel,5) ->  | G43: =VLOOKUP($C43,db_Artikel,6) ->  | H43: =VLOOKUP($C43,db_Artikel,7) ->  | I43: =IFERROR(B43*H43,"") ->  | K43: KLLV125756
B44: =IF(db_Verteiler=1,dB_AnzSTV_ZUL+dB_AnzSTV_ABL,"") ->  | C44: =IF(Deckblatt!R37=1,K44,"") ->  | D44: =VLOOKUP($C44,db_Artikel,3) ->  | E44: =VLOOKUP($C44,db_Artikel,4) ->  | F44: =VLOOKUP($C44,db_Artikel,5) ->  | G44: =VLOOKUP($C44,db_Artikel,6) ->  | H44: =VLOOKUP($C44,db_Artikel,7) ->  | I44: =IFERROR(B44*H44,"") ->  | K44: KLLZSNFL125
A45: Option | C45: KLLFSD752 | D45: =VLOOKUP($C45,db_Artikel,3) -> KL Lufttechnik Flachschalldämpfer 2xDN75 | E45: =VLOOKUP($C45,db_Artikel,4) -> Länge 500mm, 10dB bei 250Hz | F45: =VLOOKUP($C45,db_Artikel,5) -> ST | G45: =VLOOKUP($C45,db_Artikel,6) -> N | H45: =VLOOKUP($C45,db_Artikel,7) -> 162.44 | I45: =IFERROR(B45*H45,"") -> 0
D47: Verteiltechnik Zu- und Abluft Allgemein
B48: =ROUNDUP(dB_SchlauchLen/5,-1)*5 -> 0 | C48: KLLZSCHL75 | D48: =VLOOKUP($C48,db_Artikel,3) -> KL Lufttechnik Kunststoffschlauch DN75, | E48: =VLOOKUP($C48,db_Artikel,4) -> PE AD:75mm, ID:63mm | F48: =VLOOKUP($C48,db_Artikel,5) -> MT | G48: =VLOOKUP($C48,db_Artikel,6) -> J | H48: =VLOOKUP($C48,db_Artikel,7) -> 4.18 | I48: =IFERROR(B48*H48,"") -> 0
B49: =ROUNDDOWN(B48/51,0) -> 0 | C49: KLLZVEM75 | D49: KL Lufttechnik Verbindungsmuffe | E49: für Kunststoffschlauch DN75 | F49: ST | G49: J | H49: 5.19 | I49: 0
B50: =Deckblatt!U40 -> 0 | C50: KLLZSN10075 | D50: KL Lufttechnik Saugnische DN100 | E50: 1x DN75 max. 30m3/h, PE | F50: ST | G50: J | H50: 13.91 | I50: 0
B51: =Deckblatt!U40 -> 0 | C51: KLLZSNFL100 | D51: KL Lufttechnik Montageflansch DN100 | E51: für Saugnische DN100, PE | F51: ST | G51: J | H51: 6.44 | I51: 0
A52: Option | C52: KLLZSNVL100 | D52: KL Lufttechnik Verlängerung | E52: für Saugnische DN100 | F52: ST | G52: J | H52: 5.81 | I52: 0
B53: =Deckblatt!U41 -> 0 | C53: KLLZSN125752 | D53: KL Lufttechnik Saugnische DN125 | E53: 2x DN75 max. 60m3/h, PE | F53: ST | G53: J | H53: 25.64 | I53: 0
B54: =Deckblatt!U41 -> 0 | C54: KLLZSNFL125 | D54: KL Lufttechnik Montageflansch DN125 | E54: für Saugnische DN125, PE | F54: ST | G54: J | H54: 8.51 | I54: 0
A55: Option | C55: KLLZSNVL125 | D55: KL Lufttechnik Verlängerung f. Saugn.125 | E55: und Verteiler KLLV125756 | F55: ST | G55: J | H55: 7.27 | I55: 0
B56: =SUM(B64:B67)+SUM(B73:B74) -> 0 | C56: KLLZSDLR63 | D56: KL Lufttechnik Schalldämm-Luftregulier- | E56: einlage f.Saugn. DN100/125 u. Verteiler | F56: ST | G56: J | H56: 8.72 | I56: 0
D58: Sichtteile
B59: =Deckblatt!U42-B61-B64-B66 -> 0 | C59: KLLZZULV100 | D59: =VLOOKUP($C59,db_Artikel,3) -> KL Lufttechnik Zuluftventil DN100 rund | E59: =VLOOKUP($C59,db_Artikel,4) -> aus Stahlb. m. Einbaurahmen weiß lack. | F59: =VLOOKUP($C59,db_Artikel,5) -> ST | G59: =VLOOKUP($C59,db_Artikel,6) -> J | H59: =VLOOKUP($C59,db_Artikel,7) -> 5.61 | I59: =IFERROR(B59*H59,"") -> 0
B60: =Deckblatt!U43-B62-B63-B65-B67 -> 0 | C60: KLLZZULV125 | D60: KL Lufttechnik Zuluftventil DN125 rund | E60: aus Stahlb. m. Einbaurahmen weiß lack. | F60: ST | G60: J | H60: 6.95 | I60: 0
A61: Alternative | C61: KLLZULVW100 | D61: KL Lufttechnik Zuluftventil DN100 Wandm. | E61: aus Stahlb. m. Einbaurahmen weiß lack. | F61: ST | G61: J | H61: 39.24 | I61: 0
A62: Alternative | C62: KLLZULVW125 | D62: KL Lufttechnik Zuluftventil DN125 Wandm. | E62: aus Stahlb. m. Einbaurahmen weiß lack. | F62: ST | G62: J | H62: 46.09 | I62: 0
A63: Alternative | C63: KLLBOA801 | D63: KL Lufttechnik Vision Designauslass Floor | E63: DN125 ZUL-A f. Boden, Saugn.u.Reguliere. | F63: ST | G63: J | H63: 286.49 | I63: 0
A64: Alternative | C64: KLLVD100C | D64: KL Lufttechnik Vision Designgitter Cube | E64: DN100 ABL-G f. Decke, ZUL/ABL-G f. Wand | F64: ST | G64: J | H64: 66.12 | I64: 0
A65: Alternative | C65: KLLVD125C | D65: KL Lufttechnik Vision Designgitter Cube | E65: DN125 ABL-G f. Decke, ZUL/ABL-G f. Wand | F65: ST | G65: J | H65: 66.12 | I65: 0
A66: Altern. DN100 | C66: KLLVD100125P | D66: KL Lufttechnik Vision Designgitter Plane | E66: DN100/125 ZUL-G für Decke | F66: ST | G66: J | H66: 66.12 | I66: 0
A67: Altern. DN125 | C67: KLLVD100125P | D67: KL Lufttechnik Vision Designgitter Plane | E67: DN100/125 ZUL-G für Decke | F67: ST | G67: J | H67: 66.12 | I67: 0
B68: =Deckblatt!U44-B71-B73 -> 0 | C68: KLLZABLV100 | D68: KL Lufttechnik Abluftventil DN100 rund | E68: aus Stahlb. m. Einbaurahmen weiß lack. | F68: ST | G68: J | H68: 5.61 | I68: 0
B69: =Deckblatt!U45-B72-B74 -> 0 | C69: KLLZABLV125 | D69: KL Lufttechnik Abluftventil DN125 rund | E69: aus Stahlb. m. Einbaurahmen weiß lack. | F69: ST | G69: J | H69: 6.95 | I69: 0
A70: Alternative | C70: KLLZABLV080 | D70: =VLOOKUP($C70,db_Artikel,3) -> KL Lufttechnik Abluftventil DN80 | E70: =VLOOKUP($C70,db_Artikel,4) -> Kunststoff weiß | F70: =VLOOKUP($C70,db_Artikel,5) -> ST | G70: =VLOOKUP($C70,db_Artikel,6) -> J | H70: =VLOOKUP($C70,db_Artikel,7) -> 12.04 | I70: 0
A71: Alternative | C71: KLLZABLV100F | D71: KL Lufttechnik Abluftventil DN100 quad. | E71: m.Filter aus Stahlbl. weiß lackiert | F71: ST | G71: N | H71: 60.1 | I71: 0
A72: Alternative | C72: KLLZABLV125F | D72: KL Lufttechnik Abluftventil DN125 quad. | E72: m.Filter aus Stahlbl. weiß lackiert | F72: ST | G72: N | H72: 76.4 | I72: 0
A73: Alternative | C73: KLLVD100C | D73: KL Lufttechnik Vision Designgitter Cube | E73: DN100 ABL-G f. Decke, ZUL/ABL-G f. Wand | F73: ST | G73: J | H73: 66.12 | I73: 0
A74: Alternative | C74: KLLVD125C | D74: KL Lufttechnik Vision Designgitter Cube | E74: DN125 ABL-G f. Decke, ZUL/ABL-G f. Wand | F74: ST | G74: J | H74: 66.12 | I74: 0
B75: =ROUNDUP(Deckblatt!U44/10,-0.1) -> 0 | C75: KLLZVFI100 | D75: =VLOOKUP($C75,db_Artikel,3) -> KL Lufttechnik Ventilfilter G2 (10 | E75: =VLOOKUP($C75,db_Artikel,4) -> Stück) 100x150mm für Abluftventil DN100 | F75: =VLOOKUP($C75,db_Artikel,5) -> PK | G75: =VLOOKUP($C75,db_Artikel,6) -> J | H75: =VLOOKUP($C75,db_Artikel,7) -> 20.14 | I75: 0
B76: =ROUNDUP(Deckblatt!U45/10,-0.1) -> 0 | C76: KLLZVFI125 | D76: =VLOOKUP($C76,db_Artikel,3) -> KL Lufttechnik Ventilfilter G2 (10 | E76: =VLOOKUP($C76,db_Artikel,4) -> Stück) 125x150mm für Abluftventil DN125 | F76: =VLOOKUP($C76,db_Artikel,5) -> PK | G76: =VLOOKUP($C76,db_Artikel,6) -> J | H76: =VLOOKUP($C76,db_Artikel,7) -> 20.14 | I76: 0
B77: =B73 -> 0 | C77: KLLFIH100 | D77: =VLOOKUP($C77,db_Artikel,3) -> KL Lufttechnik Filterhalterung DN100 für | E77: =VLOOKUP($C77,db_Artikel,4) -> Ventilfilter in Komb. m. Vision Designg. | F77: =VLOOKUP($C77,db_Artikel,5) -> ST | G77: =VLOOKUP($C77,db_Artikel,6) -> N | H77: =VLOOKUP($C77,db_Artikel,7) -> 14.32 | I77: 0
B78: =B74 -> 0 | C78: KLLFIH125 | D78: =VLOOKUP($C78,db_Artikel,3) -> KL Lufttechnik Filterhalterung DN125 für | E78: =VLOOKUP($C78,db_Artikel,4) -> Ventilfilter in Komb. m. Vision Designg. | F78: =VLOOKUP($C78,db_Artikel,5) -> ST | G78: =VLOOKUP($C78,db_Artikel,6) -> N | H78: =VLOOKUP($C78,db_Artikel,7) -> 17.23 | I78: 0
D80: Systemkomponenten Aussen- und Fortluft
B81: 4 | C81: KLLZIRO16015 | D81: =VLOOKUP($C81,db_Artikel,3) -> KL Lufttechnik Isoliertes Lüftungsrohr | E81: =VLOOKUP($C81,db_Artikel,4) -> DN160, Länge 1m, 15mm Wandst. inkl Muffe | F81: =VLOOKUP($C81,db_Artikel,5) -> ST | G81: =VLOOKUP($C81,db_Artikel,6) -> J | H81: =VLOOKUP($C81,db_Artikel,7) -> 42.35 | I81: =IFERROR(B81*H81,"") -> 169.4
B82: 4 | C82: KLLZIBO16015 | D82: KL Lufttechnik Isolierter Bogen 90 Grad | E82: DN160, 15mm Wandstärke inkl. Muffe | F82: ST | G82: J | H82: 31.14 | I82: 124.56
A83: Option | C83: KLLZIVB16015 | D83: KL Lufttechnik Verbinder (Muffe) für | E83: ISO-Rohrsystem DN160, 15mm Wandstärke | F83: ST | G83: J | H83: 9.44 | I83: 0
B84: 4 | C84: KLLZISCHE | D84: KL Lufttechnik Befestigungsschelle für | E84: ISO-Rohrsystem DN125 und DN160 | F84: ST | G84: J | H84: 10.28 | I84: 41.12
B85: 1 | C85: KLLFLA160A | D85: KL Lufttechnik AUL-Fassadenanschluss | E85: DN160 für ISO-Rohrsystem 160/190 | F85: ST | G85: J | H85: 165.66 | I85: 165.66
B86: 1 | C86: KLLFLA160F | D86: KL Lufttechnik FOL-Fassadenanschluss | E86: DN160 für ISO-Rohrsystem 160/190 | F86: ST | G86: J | H86: 206.04 | I86: 206.04
A87: Alternative | C87: KLLZDAHAU160 | D87: KL Lufttechnik Dachhaube DN160 | E87: ohne Dachpfanne | F87: ST | G87: N | H87: 196.29 | I87: 0
A88: Alternative | C88: KLLZDAPF160 | D88: KL Lufttechnik Dachpfanne DN160 | E88: für 25-45 Grad Dachneigung | F88: ST | G88: N | H88: 167.95 | I88: 0
D90: Inbetriebnahme und Anlageneinregulierung
B91: 1 | C91: HOIBNKLWRL | D91: =VLOOKUP($C91,db_Artikel,3) -> Inbetriebnahme und Anlageneinregulierung | F91: =VLOOKUP($C91,db_Artikel,5) -> PA | G91: =VLOOKUP($C91,db_Artikel,6) -> J | H91: =VLOOKUP($C91,db_Artikel,7) -> 385 | I91: =IFERROR(B91*H91,"") -> 385
D93: Planung
A94: Option | C94: PLANMODUL2/3 | D94: =VLOOKUP($C94,db_Artikel,3) -> Planung einer Komfortlüftungsanlage inkl. 2D- | E94: =VLOOKUP($C94,db_Artikel,4) -> Plänen, Luftmengen u. Massenauszug | F94: =VLOOKUP($C94,db_Artikel,5) -> PA | G94: =VLOOKUP($C94,db_Artikel,6) -> J | H94: =VLOOKUP($C94,db_Artikel,7) -> 280 | I94: =IFERROR(B94*H94,"") -> 0
A96: BRUTTOLISTENPREIS in Euro exkl. MwSt. | H96: € | I96: =SUM(I8:I95) -> 4531.91
A98: gültig bis 31.12.2025. KL-Lufttechnik übernimmt keine Gewähr für zukünftige Preisänderungen.
A100: ANNAHMEN: | B100: pro Zu- bzw. Abluftleitung wurde eine Länge von 12 m angenommen
B101: für die Verteileranbindung wurden 2 Schalldämpfer mit einer Länge von je 1,2m angenommen
B102: für die Aussen- bzw. Fortluftleitung wurde insgesamt eine Leitungslänge von 4m inkl. Befestigung bzw. 4 Bögen angenommen
B103: für die Aussenluftansaugung bzw. für die Fortluftausblasung wurde jeweils ein Wandgitter einkalkuliert
A105: ACHTUNG: | B105: Der vorliegende Kalkulationsvorschlag ist lediglich ein Kostenvoranschlag.
B106: Sofern nicht anders angegeben, wird bei dem Kalkulationsvorschlag von einer üblichen Raumbelegung (Schlafzimmer 2 Pers,; Kind/
B107: Gast/Büro je 1 Pers.; (Wohn-/Esszimmer im Mittel 3-4 Pers.) ausgegangen.
B108: Die Berechnung basiert auf der Grundlage der Ö Norm H 6038:2014
B109: Etwaige zusätzliche Formteile (T-Stücke, Reduktionen…) sind nicht im Angebot enthalten
A111: HAFTUNGSAUSSCHLUSS:
B112: Die zur Verfügung gestellten Berechnungsergebnisse und Unterlagen sind vom ausführenden Installateur vor der Verwendung im Geschäftsbereich
B113: eigenverantwortlich auf Vollständigkeit und Richtigkeit zu prüfen. Für die Richtigkeit und Vollständigkeit der Berechnungsergebnisse und/oder
B114: eventuelle Folgeschäden und Kosten, die aufgrund fehlerhafter Berechnung entstanden sind und/oder entstehen können, übernimmt die Firma KL-Luft-
B115: technik keine Haftung. Auch die Haftung für Erfüllungsgehilfen wird ausgeschlossen. Der Haftungsausschluss gilt für vertragliche und deliktische Ansprüche
B116: Ausgenommen davon bleibt die Haftung wegen Vorsatz und grober Fahrlässigkeit.

Sheet Artikelübersicht (hidden)
A1: Holter_Artikeln. | B1: KLL_Artikeln. | C1: BEZ1 | D1: BEZ2 | E1: EH | F1: Lagernd | G1: UVP 2024
A2: HOIBNKLWRL | C2: Inbetriebnahme und Anlageneinregulierung | E2: PA | F2: J | G2: 385
A3: KLL170ASPLM | B3: 11KL170-ASPL-M | C3: KL Lufttechnik Anschlussplatte Massivwand | D3: KL170XV/KL170S/KL170, auch f. WC Modul | E3: ST | F3: N | G3: 182.07
A4: KLL170ASPLSW | B4: 11KL170-ASPL-SW | C4: KL Lufttechnik Anschlussplatte Ständerwand | D4: KL170XV/KL170S/KL170, auch f. WC Modul | E4: ST | F4: N | G4: 150.41
A5: KLL170EBR | B5: 11KL170-EBR | C5: KL Lufttechnik Einbaurahmen für KL170 2 | D5: Stück lang und 2 Stück kurz | E5: SE | F5: N | G5: 108.99
A6: KLL170EBR/H | B6: 11KL170-EBR-H | C6: KL Lufttechnik Einbaurahmen für KL170 | D6: 2 St. lang, 1 St. kurz, 1 St. kurz/hoch | E6: SE | F6: N | G6: 122.07
A7: KLL170EBRH | B7: 11KL170-EBRH | C7: KL Lufttechnik Einbaurahmenhalterung | D7: für KL170, 4 Stk. | E7: SE | F7: N | G7: 51.8
A8: KLL170FSET | B8: 11KL170-FI-SET | C8: KL Lufttechnik 1x ZUL Filter F7 250x | D8: 250x47mm, 1x ABL Filter G4 250x230x47mm | E8: SE | F8: J | G8: 50.76
A9: KLL170FSETF9 | B9: 11KL170-FI-Set-F9 | C9: KL Lufttechnik 1x ZUL Filter F9 250x | D9: 250x47mm, 1x ABL Filter G4 250x230x47mm | E9: SE | F9: J | G9: 94.15
A10: KLL170LE | B10: 11KL170-L-E | C10: KL Lufttechnik Lüftungsgerät KL170 ZUL | D10: links mit Enthalpie WT (Wand/Decke) | E10: ST | F10: N | G10: 3006.98
A11: KLL170LV | B11: 11KL170-LV | C11: KL Lufttechnik Lüftungsgerät KL170 ZUL | D11: links mit VHR (Wand) | E11: ST | F11: N | G11: 2515.69
A12: KLL170LVE | B12: 11KL170-LV-E | C12: KL Lufttechnik Lüftungsgerät KL170 ZUL | D12: li. m. VHR u. Enthalpie WT (Wand/Decke) | E12: ST | F12: N | G12: 3100.51
A13: KLL170NHR | B13: 11KL170-NHR | C13: KL Lufttechnik PTC-Nachheizregister | D13: für KL170XV/KL170S/KL170 | E13: ST | F13: N | G13: 206.04
A14: KLL170RE | B14: 11KL170-R-E | C14: KL Lufttechnik Lüftungsgerät KL170 ZUL | D14: rechts mit Enthalpie WT (Wand/Decke) | E14: ST | F14: N | G14: 3006.98
A15: KLL170RV | B15: 11KL170-RV | C15: KL Lufttechnik Lüftungsgerät KL170 ZUL | D15: rechts mit VHR (Wand) | E15: ST | F15: N | G15: 2515.69
A16: KLL170RVE | B16: 11KL170-RV-E | C16: KL Lufttechnik Lüftungsgerät KL170 ZUL | D16: re. m. VHR u. Enthalpie WT (Wand/Decke) | E16: ST | F16: N | G16: 3100.51
A17: KLL170SLE | B17: 11KL170-SL-E | C17: KL Lufttechnik Lüftungsgerät KL170S ZUL | D17: links mit Enthalpie WT (Wand/Decke) | E17: ST | F17: N | G17: 2541.02
A18: KLL170SLV | B18: 11KL170-SLV | C18: KL Lufttechnik Lüftungsgerät KL170S ZUL | D18: links mit VHR (Wand) | E18: ST | F18: J | G18: 2218.21
A19: KLL170SLVE | B19: 11KL170-SLV-E | C19: KL Lufttechnik Lüftungsgerät KL170S ZUL | D19: li. m. VHR u. Enthalpie WT (Wand/Decke) | E19: ST | F19: J | G19: 2641.71
A20: KLL170SRE | B20: 11KL170-SR-E | C20: KL Lufttechnik Lüftungsgerät KL170S ZUL | D20: rechts mit Enthalpie WT (Wand/Decke) | E20: ST | F20: N | G20: 2541.02
A21: KLL170SRV | B21: 11KL170-SRV | C21: KL Lufttechnik Lüftungsgerät KL170S ZUL | D21: rechts mit VHR (Wand) | E21: ST | F21: J | G21: 2218.21
A22: KLL170SRVE | B22: 11KL170-SRV-E | C22: KL Lufttechnik Lüftungsgerät KL170S ZUL | D22: re. m. VHR u. Enthalpie WT (Wand/Decke) | E22: ST | F22: J | G22: 2641.71
A23: KLL170XV | B23: 11KL170-XV | C23: KL Lufttechnik Lüftungsgerät KL170XV ZUL | D23: li .od.re, m. VHR (Wand) | E23: ST | F23: J | G23: 1778.82
A24: KLL170XVE | B24: 11KL170-XV-E | C24: KL Lufttechnik Lüftungsgerät KL170XVE ZUL | D24: li/re, m.VHR u.Enthalpie WT (Wand/Decke) | E24: ST | F24: J | G24: 2161.12
A25: KLL170XVFSET | B25: 11KL170-XV-FI-SET | C25: KL Lufttechnik Filterset für KL170XV | D25: 1xZUL Filter F7, 1xABL Filter G4 | E25: SE | F25: J | G25: 42.04
A26: KLL170XVFSETF9 | B26: 11KL170-XV-FI-SET-F9 | C26: KL Lufttechnik Filterset für KL170XV | D26: 1xZUL Filter F9, 1xABL Filter G4 | E26: SE | F26: N | G26: 82
A27: KLL350500FSET | B27: 11KL350/500-FI-SET | C27: KL Lufttechnik 1x ZUL Filter F7 440x | D27: 300x47mm, 1x ABL Filter G4 440x280x47mm | E27: SE | F27: J | G27: 59.58
A28: KLL350500FSETF9 | B28: 11KL350/500-FI-SET-F9 | C28: KL Lufttechnik 1x ZUL Filter F9 440x | D28: 300x47mm, 1x ABL Filter G4 440x280x47mm | E28: SE | F28: N | G28: 101.83
A29: KLL350500MOBD | B29: 11KL350/500-MOBD | C29: KL Lufttechnik Montagebügel Decke | D29: für KL350/KL500 ohne Bypass | E29: SE | F29: J | G29: 78.89
A30: KLL350500MOBDB | B30: 11KL350/500-MOBDB | C30: KL Lufttechnik Montagebügel Decke | D30: für KL350/KL500 mit Bypass | E30: SE | F30: J | G30: 83.87
A31: KLL350500MOF | B31: 11KL350/500-MOF | C31: KL Lufttechnik Montagefüße f.KL350/KL500 | D31: f.freistehende Mont.(2 Stk) | E31: SE | F31: N | G31: 135.15
A32: KLL350LBE | B32: 11KL350-LB-E | C32: KL Lufttechnik Lüftungsgerät KL350 ZUL | D32: li. m. Byp. u. Enthalpie WT (Wand/Decke) | E32: ST | F32: N | G32: 4095.43
A33: KLL350LV | B33: 11KL350-LV | C33: KL Lufttechnik Lüftungsgerät KL350 ZUL | D33: links mit VHR (Wand) | E33: ST | F33: N | G33: 3210.22
A34: KLL350LVB | B34: 11KL350-LVB | C34: KL Lufttechnik Lüftungsgerät KL350 ZUL | D34: links mit VHR mit Bypass (Wand) | E34: ST | F34: J | G34: 3477.09
A35: KLL350LVBE | B35: 11KL350-LVB-E | C35: KL Lufttechnik Lüftungsgerät KL350 ZUL | D35: li.m.VHR, Byp.u.Enthalpie WT, Wand/Decke | E35: ST | F35: J | G35: 4222.47
A36: KLL350LVE | B36: 11KL350-LV-E | C36: KL Lufttechnik Lüftungsgerät KL350 ZUL | D36: li. m. VHR u. Enthalpie WT (Wand/Decke) | E36: ST | F36: N | G36: 3955.61
A37: KLL350RBE | B37: 11KL350-RB-E | C37: KL Lufttechnik Lüftungsgerät KL350 ZUL | D37: re. m. Byp. u. Enthalpie WT (Wand/Decke) | E37: ST | F37: N | G37: 4095.43
A38: KLL350RV | B38: 11KL350-RV | C38: KL Lufttechnik Lüftungsgerät KL350 ZUL | D38: rechts mit VHR (Wand) | E38: ST | F38: N | G38: 3210.22
A39: KLL350RVB | B39: 11KL350-RVB | C39: KL Lufttechnik Lüftungsgerät KL350 ZUL | D39: rechts mit VHR mit Bypass (Wand) | E39: ST | F39: J | G39: 3477.09
A40: KLL350RVBE | B40: 11KL350-RVB-E | C40: KL Lufttechnik Lüftungsgerät KL350 ZUL | D40: re.m.VHR, Byp.u.Enthalpie WT, Wand/Decke | E40: ST | F40: J | G40: 4222.47
A41: KLL350RVE | B41: 11KL350-RV-E | C41: KL Lufttechnik Lüftungsgerät KL350 ZUL | D41: re.m.VHR u.Enthalpie WT (Wand/Decke) | E41: ST | F41: N | G41: 3955.61
A42: KLL500LBE | B42: 11KL500-LB-E | C42: KL Lufttechnik Lüftungsgerät KL500 ZUL | D42: li. m. Byp. u. Enthalpie WT (Wand/Decke) | E42: ST | F42: N | G42: 4095.43
A43: KLL500LV | B43: 11KL500-LV | C43: KL Lufttechnik Lüftungsgerät KL500 ZUL | D43: links mit VHR (Wand) | E43: ST | F43: N | G43: 3210.22
A44: KLL500LVB | B44: 11KL500-LVB | C44: KL Lufttechnik Lüftungsgerät KL500 ZUL | D44: links mit VHR mit Bypass (Wand) | E44: ST | F44: N | G44: 3477.09
A45: KLL500LVBE | B45: 11KL500-LVB-E | C45: KL Lufttechnik Lüftungsgerät KL500 ZUL | D45: li.m.VHR, Byp.u.Enthalpie WT, Wand/Decke | E45: ST | F45: N | G45: 4222.47
A46: KLL500LVE | B46: 11KL500-LV-E | C46: KL Lufttechnik Lüftungsgerät KL500 ZUL | D46: li. m. VHR u. Enthalpie WT (Wand/Decke) | E46: ST | F46: N | G46: 3955.61
A47: KLL500RBE | B47: 11KL500-RB-E | C47: KL Lufttechnik Lüftungsgerät KL500 ZUL | D47: re. m. Byp. u. Enthalpie WT (Wand/Decke) | E47: ST | F47: N | G47: 4095.43
A48: KLL500RV | B48: 11KL500-RV | C48: KL Lufttechnik Lüftungsgerät KL500 ZUL | D48: rechts mit VHR (Wand) | E48: ST | F48: J | G48: 3210.22
A49: KLL500RVB | B49: 11KL500-RVB | C49: KL Lufttechnik Lüftungsgerät KL500 ZUL | D49: rechts mit VHR und Bypass (Wand) | E49: ST | F49: N | G49: 3477.09
A50: KLL500RVBE | B50: 11KL500-RVB-E | C50: KL Lufttechnik Lüftungsgerät KL500 ZUL | D50: re.m.VHR, Byp.u.Enthalpie WT, Wand/Decke | E50: ST | F50: N | G50: 4222.47
A51: KLL500RVE | B51: 11KL500-RV-E | C51: KL Lufttechnik Lüftungsgerät KL500 ZUL | D51: re. m. VHR u. Enthalpie WT (Wand/Decke) | E51: ST | F51: N | G51: 3955.61
A52: KLLAUF | B52: 11AUF | C52: KL Lufttechnik Außentemperaturfühler | E52: ST | F52: N | G52: 21.18
A53: KLLBOA801 | B53: 11KL-BOA80-1 | C53: KL Lufttechnik Vision Designauslass Floor | D53: DN125 ZUL-A f. Boden, Saugn.u.Reguliere. | E53: ST | F53: J | G53: 286.49
A54: KLLBTAPRA | B54: 11BT-APRA | C54: KL Lufttechnik Aufputzrahmen für Bedien- | D54: teil MINI und SMART | E54: ST | F54: N | G54: 30.52
A55: KLLBTM | B55: 11BTM | C55: KL Lufttechnik Bedienteil Mini | D55: kabelgebunden | E55: ST | F55: J | G55: 97.05
A56: KLLBTS | B56: 11BTS | C56: KL Lufttechnik Bedienteil Smart | D56: kabelgebunden | E56: ST | F56: J | G56: 394
A57: KLLFIH100 | B57: 11KL-FIH100 | C57: KL Lufttechnik Filterhalterung DN100 für | D57: Ventilfilter in Komb. m. Vision Designg. | E57: ST | F57: N | G57: 14.32
A58: KLLFIH125 | B58: 11KL-FIH125 | C58: KL Lufttechnik Filterhalterung DN125 für | D58: Ventilfilter in Komb. m. Vision Designg. | E58: ST | F58: N | G58: 17.23
A59: KLLFLA125A | B59: 11FLA125-A | C59: KL Lufttechnik AUL-Fassadenanschluss | D59: DN125 für ISO-Rohrsystem 125/155 | E59: ST | F59: J | G59: 137.33
A60: KLLFLA125AF | B60: 11FLA125-AF | C60: KL Lufttechnik AUL/FOL-Fassadenanschluss | D60: DN125 für ISO-Rohrsystem 125/155 | E60: ST | F60: N | G60: 34.88
A61: KLLFLA125F | B61: 11FLA125-F | C61: KL Lufttechnik FOL-Fassadenanschluss | D61: DN125 für ISO-Rohrsystem 125/155 | E61: ST | F61: J | G61: 188.6
A62: KLLFLA125LAF | B62: 11FLA125-L-AF | C62: KL Lufttechnik AUL-FOL Fassadenanschl. | D62: DN125 AUL links | E62: ST | F62: J | G62: 213.62
A63: KLLFLA125RAF | B63: 11FLA125-R-AF | C63: KL Lufttechnik AUL-FOL Fassadenanschl. | D63: DN125 AUL rechts | E63: ST | F63: J | G63: 213.62
A64: KLLFLA160A | B64: 11FLA160-A | C64: KL Lufttechnik AUL-Fassadenanschluss | D64: DN160 für ISO-Rohrsystem 160/190 | E64: ST | F64: J | G64: 165.66
A65: KLLFLA160F | B65: 11FLA160-F | C65: KL Lufttechnik FOL-Fassadenanschluss | D65: DN160 für ISO-Rohrsystem 160/190 | E65: ST | F65: J | G65: 206.04
A66: KLLFSD752 | B66: 11FSD75-2 | C66: KL Lufttechnik Flachschalldämpfer 2xDN75 | D66: Länge 500mm, 10dB bei 250Hz | E66: ST | F66: N | G66: 162.44
A67: KLLKUNI125 | B67: 11KUNI125 | C67: KL Lufttechnik Kunststoff Nippel | D67: DN125 | E67: ST | F67: N | G67: 10.69
A68: KLLSDVEPP | B68: 11SDVEPP | C68: KL Lufttechnik Schalldämmverteiler | D68: 3x125/160mm Eing./28x75mm Ausg. | E68: ST | F68: J | G68: 569.86
A69: KLLSDVEPPMOB | B69: 11SDV-EPP-MOB | C69: KL Lufttechnik Montagebügel Decke | D69: für Schalldämmverteiler SDVEPP | E69: ST | F69: J | G69: 69
A70: KLLSEP | B70: 11KL-SEP | C70: KL Lufttechnik Sensorplatine mit VOC- | D70: Luftqualitäts- und Feuchtesensor | E70: ST | F70: J | G70: 233.24
A71: KLLV125756 | B71: 11V125-75-6 | C71: KL Lufttechnik Sternverteiler (Kunstst.) | D71: 1x125 Eingang und 6x75mm Ausgang, 90Grad | E71: ST | F71: J | G71: 53.46
A72: KLLVD100125P | B72: 11KL-VD100-125-P | C72: KL Lufttechnik Vision Designgitter Plane | D72: DN100/125 ZUL-G für Decke | E72: ST | F72: J | G72: 66.12
A73: KLLVD100C | B73: 11KL-VD100-C | C73: KL Lufttechnik Vision Designgitter Cube | D73: DN100 ABL-G f. Decke, ZUL/ABL-G f. Wand | E73: ST | F73: J | G73: 66.12
A74: KLLVD125C | B74: 11KL-VD125-C | C74: KL Lufttechnik Vision Designgitter Cube | D74: DN125 ABL-G f. Decke, ZUL/ABL-G f. Wand | E74: ST | F74: J | G74: 66.12
A75: KLLZABLV080 | B75: 11ZABLV080 | C75: KL Lufttechnik Abluftventil DN80 | D75: Kunststoff weiß | E75: ST | F75: J | G75: 12.04
A76: KLLZABLV100 | B76: 11ZABLV100 | C76: KL Lufttechnik Abluftventil DN100 rund | D76: aus Stahlb. m. Einbaurahmen weiß lack. | E76: ST | F76: J | G76: 5.61
A77: KLLZABLV100F | B77: 11ZABLV100F | C77: KL Lufttechnik Abluftventil DN100 quad. | D77: m.Filter aus Stahlbl. weiß lackiert | E77: ST | F77: N | G77: 60.1
A78: KLLZABLV125 | B78: 11ZABLV125 | C78: KL Lufttechnik Abluftventil DN125 rund | D78: aus Stahlb. m. Einbaurahmen weiß lack. | E78: ST | F78: J | G78: 6.95
A79: KLLZABLV125F | B79: 11ZABLV125F | C79: KL Lufttechnik Abluftventil DN125 quad. | D79: m.Filter aus Stahlbl. weiß lackiert | E79: ST | F79: N | G79: 76.4
A80: KLLZAFS125 | B80: 11ZAFS125 | C80: KL Lufttechnik Aluflex Schlauch DN125, | D80: Länge 5m, zweilagig | E80: ST | F80: J | G80: 37.68
A81: KLLZAFS160 | B81: 11ZAFS160 | C81: KL Lufttechnik Aluflex Schlauch DN160, | D81: Länge 5m, zweilagig | E81: ST | F81: J | G81: 53.04
A82: KLLZDAHAU125 | B82: 11ZDAHAU125 | C82: KL Lufttechnik Dachhaube DN125 | D82: ohne Dachpfanne | E82: ST | F82: N | G82: 187.57
A83: KLLZDAHAU160 | B83: 11ZDAHAU160 | C83: KL Lufttechnik Dachhaube DN160 | D83: ohne Dachpfanne | E83: ST | F83: N | G83: 196.29
A84: KLLZDAPF125 | B84: 11ZDAPF125 | C84: KL Lufttechnik Dachpfanne DN125 | D84: für 25-45 Grad Dachneigung | E84: ST | F84: N | G84: 162.86
A85: KLLZDAPF160 | B85: 11ZDAPF160 | C85: KL Lufttechnik Dachpfanne DN160 | D85: für 25-45 Grad Dachneigung | E85: ST | F85: N | G85: 167.95
A86: KLLZHASAP12 | B86: 11ZHASAP12 | C86: KL Lufttechnik Schlauchhalterung | D86: zu Anschlussplatte SDV, einseitig | E86: ST | F86: N | G86: 56.67
A87: KLLZHASAP6 | B87: 11ZHASAP6 | C87: KL Lufttechnik Schlauchhalterung | D87: zu Anschlussplatte SDV, beidseitig (1PK=2STK) | E87: PK | F87: J | G87: 56.67
A88: KLLZIBO125 | B88: 11ZIBO125 | C88: KL Lufttechnik Isolierter Bogen 90 Grad | D88: DN125, 15mm Wandstärke inkl. Muffe | E88: ST | F88: J | G88: 27.82
A89: KLLZIBO16015 | B89: 11ZIBO160-15 | C89: KL Lufttechnik Isolierter Bogen 90 Grad | D89: DN160, 15mm Wandstärke inkl. Muffe | E89: ST | F89: J | G89: 31.14
A90: KLLZIRO125 | B90: 11ZIRO125 | C90: KL Lufttechnik Isoliertes Lüftungsrohr | D90: DN125, Länge 1m, 15mm Wandst. inkl Muffe | E90: ST | F90: J | G90: 31.76
A91: KLLZIRO16015 | B91: 11ZIRO160-15 | C91: KL Lufttechnik Isoliertes Lüftungsrohr | D91: DN160, Länge 1m, 15mm Wandst. inkl Muffe | E91: ST | F91: J | G91: 42.35
A92: KLLZISCHE | B92: 11ZISCHE | C92: KL Lufttechnik Befestigungsschelle für | D92: ISO-Rohrsystem DN125 und DN160 | E92: ST | F92: J | G92: 10.28
A93: KLLZIVB125 | B93: 11ZIVB125 | C93: KL Lufttechnik Verbinder (Muffe) für | D93: ISO-Rohrsystem DN125, 15mm Wandstärke | E93: ST | F93: J | G93: 9.02
A94: KLLZIVB16015 | B94: 11ZIVB160-15 | C94: KL Lufttechnik Verbinder (Muffe) für | D94: ISO-Rohrsystem DN160, 15mm Wandstärke | E94: ST | F94: J | G94: 9.44
A95: KLLZKUNI75EPP | B95: 11ZKUNI75-EPP | C95: KL Lufttechnik Verbindungsset SDV | D95: und Anschlussplatte | E95: ST | F95: J | G95: 51
A96: KLLZRKL80120D | B96: 11ZRKL80x120-D | C96: KL Lufttechnik Revisionsklappe 80x120cm | D96: für KL170-XV und KL-Box, Deckeneinbau | E96: ST | F96: J | G96: 237.6
A97: KLLZRKL80120W | B97: 11ZRKL80x120-W | C97: KL Lufttechnik Revisionsklappe 80x120cm | D97: für KL170-XV und KL-Box, Wandeinbau | E97: ST | F97: N | G97: 237.6
A98: KLLZSCHL75 | B98: 11ZSCHL75 | C98: KL Lufttechnik Kunststoffschlauch DN75, | D98: PE AD:75mm, ID:63mm | E98: MT | F98: J | G98: 4.18
A99: KLLZSDLR63 | B99: 11ZSDLR63 | C99: KL Lufttechnik Schalldämm-Luftregulier- | D99: einlage f.Saugn. DN100/125 u. Verteiler | E99: ST | F99: J | G99: 8.72
A100: KLLZSDS12506M | B100: 11ZSDS125-0,6-MM | C100: KL Lufttechnik Flexibler Schalldämpfer | D100: DN125, 0,6m, 27dB bei 250Hz, 50mm | E100: ST | F100: N | G100: 56.57
A101: KLLZSDS1251MN | B101: 11ZSDS125-1-MN | C101: KL Lufttechnik Flexibler Schalldämpfer | D101: DN125, 1m, 32dB bei 250Hz, 25mm | E101: ST | F101: J | G101: 70.58
A102: KLLZSDS16012MN | B102: 11ZSDS160-1,2-MN | C102: KL Lufttechnik Flexibler Schalldämpfer | D102: DN160, 1,2m, 48dB bei 250Hz, 50mm | E102: ST | F102: N | G102: 85.53
A103: KLLZSDVASPL/EPP | B103: 11ZSDVASPL-EPP | C103: KL Lufttechnik Anschlussplatte für | D103: Schalldämmverteiler EPP | E103: ST | F103: J | G103: 109
A104: KLLZSDVASPL/EW | B104: 11ZSDVASPL-EW | C104: KL Lufttechnik Anschlussplattenerweiterung | D104: zu EPP-Verteiler (2 Stück) | E104: ST | F104: J | G104: 88
A105: KLLZSIFON | B105: 11ZSIFON | C105: KL Lufttechnik Sifon mit Geruchssperre | D105: für KL170XV/KL170S/KL170 und KL350/500 | E105: ST | F105: J | G105: 58.85
A106: KLLZSN10075 | B106: 11ZSN100-75 | C106: KL Lufttechnik Saugnische DN100 | D106: 1x DN75 max. 30m3/h, PE | E106: ST | F106: J | G106: 13.91
A107: KLLZSN125752 | B107: 11ZSN125-75-2 | C107: KL Lufttechnik Saugnische DN125 | D107: 2x DN75 max. 60m3/h, PE | E107: ST | F107: J | G107: 25.64
A108: KLLZSNFL100 | B108: 11ZSNFL100 | C108: KL Lufttechnik Montageflansch DN100 | D108: für Saugnische DN100, PE | E108: ST | F108: J | G108: 6.44
A109: KLLZSNFL125 | B109: 11ZSNFL125 | C109: KL Lufttechnik Montageflansch DN125 | D109: für Saugnische DN125, PE | E109: ST | F109: J | G109: 8.51
A110: KLLZSNVL100 | B110: 11ZSNVL100 | C110: KL Lufttechnik Verlängerung | D110: für Saugnische DN100 | E110: ST | F110: J | G110: 5.81
A111: KLLZSNVL125 | B111: 11ZSNVL125 | C111: KL Lufttechnik Verlängerung f. Saugn.125 | D111: und Verteiler KLLV125756 | E111: ST | F111: J | G111: 7.27
A112: KLLZULVW100 | B112: 11ZULVW100 | C112: KL Lufttechnik Zuluftventil DN100 Wandm. | D112: aus Stahlb. m. Einbaurahmen weiß lack. | E112: ST | F112: J | G112: 39.24
A113: KLLZULVW125 | B113: 11ZULVW125 | C113: KL Lufttechnik Zuluftventil DN125 Wandm. | D113: aus Stahlb. m. Einbaurahmen weiß lack. | E113: ST | F113: J | G113: 46.09
A114: KLLZVEM75 | B114: 11ZVEM75 | C114: KL Lufttechnik Verbindungsmuffe | D114: für Kunststoffschlauch DN75 | E114: ST | F114: J | G114: 5.19
A115: KLLZVFI100 | B115: 11ZVFI100 | C115: KL Lufttechnik Ventilfilter G2 (10 | D115: Stück) 100x150mm für Abluftventil DN100 | E115: PK | F115: J | G115: 20.14
A116: KLLZVFI125 | B116: 11ZVFI125 | C116: KL Lufttechnik Ventilfilter G2 (10 | D116: Stück) 125x150mm für Abluftventil DN125 | E116: PK | F116: J | G116: 20.14
A117: KLLZZULV100 | B117: 11ZZULV100 | C117: KL Lufttechnik Zuluftventil DN100 rund | D117: aus Stahlb. m. Einbaurahmen weiß lack. | E117: ST | F117: J | G117: 5.61
A118: KLLZZULV125 | B118: 11ZZULV125 | C118: KL Lufttechnik Zuluftventil DN125 rund | D118: aus Stahlb. m. Einbaurahmen weiß lack. | E118: ST | F118: J | G118: 6.95
A119: PKB75/87 | C119: Poloplast Polokal NG Bogen PKB2134 | D119: 87,5 Grad DN75 | E119: ST | F119: J | G119: 11.18
A120: PLANMODUL2/1 | C120: Planung einer Komfortlüftungsanlage inkl. 2D- | D120: Plänen, Luftmengen u. Massenauszug | E120: PA | F120: J | G120: 175
A121: PLANMODUL2/2 | C121: Planung einer Komfortlüftungsanlage inkl. 2D- | D121: Plänen, Luftmengen u. Massenauszug | E121: PA | F121: J | G121: 220
A122: PLANMODUL2/3 | C122: Planung einer Komfortlüftungsanlage inkl. 2D- | D122: Plänen, Luftmengen u. Massenauszug | E122: PA | F122: J | G122: 280
